Workbook

Sheet Sheet1 (hidden)
B2: PREFERED FRACTIONS ON CHART | H2: Butt to tip correction due to choice of tip wgt - mm is tip WGT lenght as millimeter
B4: SET UP - BASIC CLUB SPECS | G4: 2 | H4: Grams | I4: 0 | J4: 1 | K4: 2 | L4: 3 | M4: 4 | N4: 5 | O4: 6 | P4: 7 | Q4: 8 | R4: 9 | S4: 10
B5: Grip Butt cap thickness | E5: 0.125 | H5: mm | I5: 0 | J5: =AD30 -> 3.980952381 | K5: =AD29 -> 5.742857143 | L5: =AD28 -> 8.336842105 | M5: =AD27 -> 10.93333333 | N5: =AD26 -> 13.53103448 | O5: =AD25 -> 16.12941176 | P5: =AD24 -> 18.72820513 | Q5: =AD23 -> 21.225 | R5: =AD22 -> 23.92653061 | S5: =AD21 -> 26.32653061
B6: LENGTH between clubs | E6: 0.375 | H6: =LOOKUP(I13,I4:R4,I7:R7) -> 0.199047619
B7: (1W-9W)-(H1-H7)-(#3-#9) | H7: BT corr | I7: 0 | J7: =(J5/2)/10 -> 0.199047619 | K7: =(K5/2)/10 -> 0.2871428571 | L7: 0.4168421053 | M7: 0.5466666667 | N7: 0.6765517241 | O7: 0.8064705882 | P7: 0.9364102564 | Q7: 1.06125 | R7: 1.196326531 | S7: 1.316326531
B8: LENGTH BETWEEN WEDGES | E8: 0.25
B9: CLUB IN WORK - GREEN CLUB ON THE CHART
B10: BBGM-Bottom of bore to Ground. | E10: 1.25 | I10: .((LENGTH cm x LENGTH cm)*1)/1000
B11: Play Length longest /GREEN club in work | E11: 39.125 | H11: MOI points pr gram at this play lenght | L11: =((H20*H20)*1)/1000 -> 9.216662869 | N11: Points pr.Gram
B12: MOI points to ADD to the GREEN CLUB | E12: 25 | H12: Grams pr MOI point at this play lenght | L12: =L11/100 -> 0.09216662869 | N12: Gram pr. Point
B13: . =NEEDED WEIGTH IN GRAMS | E13: =E12/L11 -> 2.712478514 | H13: Grams | I13: 1 | J13: 1 | K13: LIGHTEST TIP WGT - TIP W PROGRESSION
B16: TIP WEIGHT AS GRAMS TO MOI POINT CHART | I16: Grams | J16: Grams | K16: Grams | L16: Grams | M16: Grams | N16: Grams | O16: Grams | P16: Grams | Q16: Grams | R16: Grams | S16: Grams
I17: =I13 -> 1 | J17: =I17+J13 -> 2 | K17: =J17+J13 -> 3 | L17: =K17+J13 -> 4 | M17: =L17+J13 -> 5 | N17: =M17+J13 -> 6 | O17: =N17+J13 -> 7 | P17: =O17+J13 -> 8 | Q17: =P17+J13 -> 9 | R17: =Q17+J13 -> 10 | S17: =R17+J13 -> 11
B18: Play lenght | C18: Play lenght | D18: BBGM | E18: Butt cap | F18: Net shaft | G18: Butt to tip | H18: Butt to tip Cm | I18: MOI Points | J18: MOI Points | K18: MOI Points | L18: MOI Points | M18: MOI Points | N18: MOI Points | O18: MOI Points | P18: MOI Points | Q18: MOI Points | R18: MOI Points | S18: MOI Points
A20: ="1W"&"/H1"&"/#3" -> 1W/H1/#3 | B20: =E11 -> 39.125 | C20: =B20 -> 39.125 | D20: =E10 -> 1.25 | E20: =E5 -> 0.125 | F20: =B20-D20-E20 -> 37.75 | G20: =F20+E20 -> 37.875 | H20: =(G20*2.54)-$H$6 -> 96.00345238 | I20: =($H20*$H20*(I$17/1000)) -> 9.216662869 | J20: 18.43332574 | K20: 27.64998861 | L20: 36.86665148 | M20: 46.08331435 | N20: 55.29997721 | O20: 64.51664008 | P20: 73.73330295 | Q20: 82.94996582 | R20: 92.16662869 | S20: 101.3832916 | W20: gram | X20: mm | Y20: pr mm | Z20: Just MM | AA20: BT Just | AD20: Matt
A21: ="2W"&"/H2"&"/#4" -> 2W/H2/#4 | B21: =B20-$E$6 -> 38.75 | C21: 38.75 | D21: =D20 -> 1.25 | E21: =E20 -> 0.125 | F21: 37.375 | G21: =F21+E21 -> 37.5 | H21: 95.05095238 | I21: 9.034683549 | J21: 18.0693671 | K21: 27.10405065 | L21: 36.13873419 | M21: 45.17341774 | N21: 54.20810129 | O21: 63.24278484 | P21: 72.27746839 | Q21: 81.31215194 | R21: 90.34683549 | S21: 99.38151903 | V21: 10 | W21: 9.8 | X21: 25.8 | Y21: =X21/W21 -> 2.632653061 | Z21: =(X21/W21)*V21 -> 26.32653061 | AA21: =Z21/2 -> 13.16326531 | AD21: =Z21 -> 26.32653061
A22: ="3W"&"/H3"&"/#5" -> 3W/H3/#5 | B22: 38.375 | C22: 38.375 | D22: =D21 -> 1.25 | E22: =E21 -> 0.125 | F22: 37 | G22: 37.125 | H22: 94.09845238 | I22: 8.85451874 | J22: 17.70903748 | K22: 26.56355622 | L22: 35.41807496 | M22: 44.2725937 | N22: 53.12711244 | O22: 61.98163118 | P22: 70.83614992 | Q22: 79.69066866 | R22: 88.5451874 | S22: 97.39970615 | V22: 9 | W22: 8.8 | X22: 23.1 | Y22: =X22/W22 -> 2.625 | Z22: =(X22/W22)*V22 -> 23.625 | AA22: =Z22/2 -> 11.8125 | AD22: =Z21-2.4 -> 23.92653061
A23: ="4W"&"/H4"&"/#6" -> 4W/H4/#6 | B23: 38 | C23: 38 | D23: 1.25 | E23: 0.125 | F23: 36.625 | G23: 36.75 | H23: 93.14595238 | I23: 8.676168445 | J23: 17.35233689 | K23: 26.02850533 | L23: 34.70467378 | M23: 43.38084222 | N23: 52.05701067 | O23: 60.73317911 | P23: 69.40934756 | Q23: 78.085516 | R23: 86.76168445 | S23: 95.43785289 | V23: 8 | W23: 7.8 | X23: 20.6 | Y23: 2.641025641 | Z23: 21.12820513 | AA23: 10.56410256 | AD23: =Z22-2.4 -> 21.225
A24: ="5W"&"/H5"&"/#7" -> 5W/H5/#7 | B24: 37.625 | C24: 37.625 | D24: 1.25 | E24: 0.125 | F24: 36.25 | G24: 36.375 | H24: 92.19345238 | I24: 8.499632662 | J24: 16.99926532 | K24: 25.49889799 | L24: 33.99853065 | M24: 42.49816331 | N24: 50.99779597 | O24: 59.49742863 | P24: 67.9970613 | Q24: 76.49669396 | R24: 84.99632662 | S24: 93.49595928 | V24: 7 | W24: 6.8 | X24: 18 | Y24: 2.647058824 | Z24: 18.52941176 | AA24: 9.264705882 | AD24: 18.72820513
A25: ="7W"&"/H6"&"/#8" -> 7W/H6/#8 | B25: 37.25 | C25: 37.25 | D25: 1.25 | E25: 0.125 | F25: 35.875 | G25: 36 | H25: 91.24095238 | I25: 8.324911391 | J25: 16.64982278 | K25: 24.97473417 | L25: 33.29964557 | M25: 41.62455696 | N25: 49.94946835 | O25: 58.27437974 | P25: 66.59929113 | Q25: 74.92420252 | R25: 83.24911391 | S25: 91.57402531 | V25: 6 | W25: 5.8 | X25: 15.4 | Y25: 2.655172414 | Z25: 15.93103448 | AA25: 7.965517241 | AD25: 16.12941176
A26: ="9W"&"/H7"&"/#9" -> 9W/H7/#9 | B26: 36.875 | C26: 36.875 | D26: 1.25 | E26: 0.125 | F26: 35.5 | G26: 35.625 | H26: 90.28845238 | I26: 8.152004633 | J26: 16.30400927 | K26: 24.4560139 | L26: 32.60801853 | M26: 40.76002317 | N26: 48.9120278 | O26: 57.06403243 | P26: 65.21603707 | Q26: 73.3680417 | R26: 81.52004633 | S26: 89.67205097 | V26: 5 | W26: 4.8 | X26: 12.8 | Y26: 2.666666667 | Z26: 13.33333333 | AA26: 6.666666667 | AD26: 13.53103448
A27: ="#"&"PW" -> #PW | B27: =B26-$E$8 -> 36.625 | C27: 36.625 | D27: 1.25 | E27: 0.125 | F27: 35.25 | G27: 35.375 | H27: 89.65345238 | I27: 8.037741524 | J27: 16.07548305 | K27: 24.11322457 | L27: 32.1509661 | M27: 40.18870762 | N27: 48.22644914 | O27: 56.26419067 | P27: 64.30193219 | Q27: 72.33967371 | R27: 80.37741524 | S27: 88.41515676 | V27: 4 | W27: 3.8 | X27: 10.2 | Y27: 2.684210526 | Z27: 10.73684211 | AA27: 5.368421053 | AD27: 10.93333333
A28: #GW | B28: 36.375 | C28: 36.375 | D28: 1.25 | E28: 0.125 | F28: 35 | G28: 35.125 | H28: 89.01845238 | I28: 7.924284864 | J28: 15.84856973 | K28: 23.77285459 | L28: 31.69713946 | M28: 39.62142432 | N28: 47.54570919 | O28: 55.46999405 | P28: 63.39427891 | Q28: 71.31856378 | R28: 79.24284864 | S28: 87.16713351 | V28: 3 | W28: 2.8 | X28: 7.6 | Y28: 2.714285714 | Z28: 8.142857143 | AA28: 4.071428571 | AD28: 8.336842105
A29: #SW | B29: 36.125 | C29: 36.125 | D29: 1.25 | E29: 0.125 | F29: 34.75 | G29: 34.875 | H29: 88.38345238 | I29: 7.811634655 | J29: 15.62326931 | K29: 23.43490396 | L29: 31.24653862 | M29: 39.05817327 | N29: 46.86980793 | O29: 54.68144258 | P29: 62.49307724 | Q29: 70.30471189 | R29: 78.11634655 | S29: 85.9279812 | V29: 2 | W29: 2.1 | X29: 6.7 | Y29: 3.19047619 | Z29: 6.380952381 | AA29: 3.19047619 | AD29: 5.742857143
A30: #LW | B30: 35.875 | C30: 35.875 | D30: 1.25 | E30: 0.125 | F30: 34.5 | G30: 34.625 | H30: 87.74845238 | I30: =($H30*$H30*(I$17/1000)) -> 7.699790895 | J30: 15.39958179 | K30: 23.09937269 | L30: 30.79916358 | M30: 38.49895448 | N30: 46.19874537 | O30: 53.89853627 | P30: 61.59832716 | Q30: 69.29811806 | R30: 76.99790895 | S30: 84.69769985 | V30: 1 | W30: 1.1 | X30: 3 | Y30: 2.727272727 | Z30: 2.727272727 | AA30: 1.363636364 | AD30: 3.980952381
B31: 35.625 | C31: 35.625 | D31: 1.25 | E31: 0.125 | F31: 34.25 | G31: 34.375 | H31: 87.11345238 | I31: 7.588753586 | J31: 15.17750717 | K31: 22.76626076 | L31: 30.35501434 | M31: 37.94376793 | N31: 45.53252151 | O31: 53.1212751 | P31: 60.71002869 | Q31: 68.29878227 | R31: 75.88753586 | S31: 83.47628944
B32: 35.375 | C32: 35.375 | D32: 1.25 | E32: 0.125 | F32: 34 | G32: 34.125 | H32: 86.47845238 | I32: 7.478522726 | J32: 14.95704545 | K32: 22.43556818 | L32: 29.9140909 | M32: 37.39261363 | N32: 44.87113636 | O32: 52.34965908 | P32: 59.82818181 | Q32: 67.30670454 | R32: 74.78522726 | S32: 82.26374999
B33: 35.125 | C33: 35.125 | D33: 1.25 | E33: 0.125 | F33: 33.75 | G33: 33.875 | H33: 85.84345238 | I33: 7.369098317 | J33: 14.73819663 | K33: 22.10729495 | L33: 29.47639327 | M33: 36.84549158 | N33: 44.2145899 | O33: 51.58368822 | P33: 58.95278653 | Q33: 66.32188485 | R33: 73.69098317 | S33: 81.06008148
B34: 34.875 | C34: 34.875 | D34: 1.25 | E34: 0.125 | F34: 33.5 | G34: 33.625 | H34: 85.20845238 | I34: 7.260480357 | J34: 14.52096071 | K34: 21.78144107 | L34: 29.04192143 | M34: 36.30240179 | N34: 43.56288214 | O34: 50.8233625 | P34: 58.08384286 | Q34: 65.34432321 | R34: 72.60480357 | S34: 79.86528393
B35: 34.625 | C35: 34.625 | D35: 1.25 | E35: 0.125 | F35: 33.25 | G35: 33.375 | H35: 84.57345238 | I35: 7.152668848 | J35: 14.3053377 | K35: 21.45800654 | L35: 28.61067539 | M35: 35.76334424 | N35: 42.91601309 | O35: 50.06868193 | P35: 57.22135078 | Q35: 64.37401963 | R35: 71.52668848 | S35: 78.67935732
B36: 34.375 | C36: 34.375 | D36: 1.25 | E36: 0.125 | F36: 33 | G36: 33.125 | H36: 83.93845238 | I36: 7.045663788 | J36: 14.09132758 | K36: 21.13699136 | L36: 28.18265515 | M36: 35.22831894 | N36: 42.27398273 | O36: 49.31964652 | P36: 56.3653103 | Q36: 63.41097409 | R36: 70.45663788 | S36: 77.50230167
B37: =C37 -> 34.125 | C37: =B36-$E$8 -> 34.125 | D37: =D36 -> 1.25 | E37: =E36 -> 0.125 | F37: =C37-D37-E37 -> 32.75 | G37: 32.875 | H37: 83.30345238 | I37: =($H37*$H37*(I$17/1000)) -> 6.939465179 | J37: 13.87893036 | K37: 20.81839554 | L37: 27.75786071 | M37: 34.69732589 | N37: 41.63679107 | O37: 48.57625625 | P37: 55.51572143 | Q37: 62.45518661 | R37: 69.39465179 | S37: 76.33411696
B38: 33.875 | C38: =C37-$E$8 -> 33.875 | D38: 1.25 | E38: 0.125 | F38: =C38-D38-E38 -> 32.5 | G38: =F38+E38 -> 32.625 | H38: 82.66845238 | I38: 6.834073019 | J38: 13.66814604 | K38: 20.50221906 | L38: 27.33629208 | M38: 34.1703651 | N38: 41.00443811 | O38: 47.83851113 | P38: 54.67258415 | Q38: 61.50665717 | R38: 68.34073019 | S38: 75.17480321
B39: 33.625 | C39: 33.625 | D39: 1.25 | E39: 0.125 | F39: =C39-D39-E39 -> 32.25 | G39: =F39+E39 -> 32.375 | H39: 82.03345238 | I39: 6.72948731 | J39: 13.45897462 | K39: 20.18846193 | L39: 26.91794924 | M39: 33.64743655 | N39: 40.37692386 | O39: 47.10641117 | P39: 53.83589848 | Q39: 60.56538579 | R39: 67.2948731 | S39: 74.0243604
B40: 33.375 | C40: 33.375 | D40: 1.25 | E40: 0.125 | F40: 32 | G40: 32.125 | H40: 81.39845238 | I40: =($H40*$H40*(I$17/1000)) -> 6.62570805 | J40: 13.2514161 | K40: 19.87712415 | L40: 26.5028322 | M40: 33.12854025 | N40: 39.7542483 | O40: 46.37995635 | P40: 53.0056644 | Q40: 59.63137245 | R40: 66.2570805 | S40: 72.88278855
B41: 33.125 | C41: 33.125 | D41: 1.25 | E41: 0.125 | F41: 31.75 | G41: 31.875 | H41: 80.76345238 | I41: 6.52273524 | J41: 13.04547048 | K41: 19.56820572 | L41: 26.09094096 | M41: 32.6136762 | N41: 39.13641144 | O41: 45.65914668 | P41: 52.18188192 | Q41: 58.70461716 | R41: 65.2273524 | S41: 71.75008765
B42: 32.875 | C42: 32.875 | D42: 1.25 | E42: 0.125 | F42: 31.5 | G42: 31.625 | H42: 80.12845238 | I42: 6.420568881 | J42: 12.84113776 | K42: 19.26170664 | L42: 25.68227552 | M42: 32.1028444 | N42: 38.52341329 | O42: 44.94398217 | P42: 51.36455105 | Q42: 57.78511993 | R42: 64.20568881 | S42: 70.62625769
B43: 32.625 | C43: 32.625 | D43: 1.25 | E43: 0.125 | F43: 31.25 | G43: 31.375 | H43: 79.49345238 | I43: 6.319208971 | J43: 12.63841794 | K43: 18.95762691 | L43: 25.27683589 | M43: 31.59604486 | N43: 37.91525383 | O43: 44.2344628 | P43: 50.55367177 | Q43: 56.87288074 | R43: 63.19208971 | S43: 69.51129869
B44: 32.375 | C44: 32.375 | D44: 1.25 | E44: 0.125 | F44: 31 | G44: 31.125 | H44: 78.85845238 | I44: 6.218655512 | J44: 12.43731102 | K44: 18.65596654 | L44: 24.87462205 | M44: 31.09327756 | N44: 37.31193307 | O44: 43.53058858 | P44: 49.7492441 | Q44: 55.96789961 | R44: 62.18655512 | S44: 68.40521063
B45: 32.125 | C45: 32.125 | D45: 1.25 | E45: 0.125 | F45: 30.75 | G45: 30.875 | H45: 78.22345238 | I45: 6.118908502 | J45: 12.237817 | K45: 18.35672551 | L45: 24.47563401 | M45: 30.59454251 | N45: 36.71345101 | O45: 42.83235952 | P45: 48.95126802 | Q45: 55.07017652 | R45: 61.18908502 | S45: 67.30799353
B46: 31.875 | C46: 31.875 | D46: 1.25 | E46: 0.125 | F46: 30.5 | G46: 30.625 | H46: 77.58845238 | I46: 6.019967943 | J46: 12.03993589 | K46: 18.05990383 | L46: 24.07987177 | M46: 30.09983971 | N46: 36.11980766 | O46: 42.1397756 | P46: 48.15974354 | Q46: 54.17971149 | R46: 60.19967943 | S46: 66.21964737
B47: 31.625 | C47: 31.625 | D47: 1.25 | E47: 0.125 | F47: 30.25 | G47: 30.375 | H47: 76.95345238 | I47: 5.921833833 | J47: 11.84366767 | K47: 17.7655015 | L47: 23.68733533 | M47: 29.60916917 | N47: 35.531003 | O47: 41.45283683 | P47: 47.37467067 | Q47: 53.2965045 | R47: 59.21833833 | S47: 65.14017217
B48: 31.375 | C48: 31.375 | D48: 1.25 | E48: 0.125 | F48: 30 | G48: 30.125 | H48: 76.31845238 | I48: 5.824506174 | J48: 11.64901235 | K48: 17.47351852 | L48: 23.2980247 | M48: 29.12253087 | N48: 34.94703704 | O48: 40.77154322 | P48: 46.59604939 | Q48: 52.42055556 | R48: 58.24506174 | S48: 64.06956791
B49: 31.125 | C49: 31.125 | D49: 1.25 | E49: 0.125 | F49: 29.75 | G49: 29.875 | H49: 75.68345238 | I49: 5.727984964 | J49: 11.45596993 | K49: 17.18395489 | L49: 22.91193986 | M49: 28.63992482 | N49: 34.36790979 | O49: 40.09589475 | P49: 45.82387971 | Q49: 51.55186468 | R49: 57.27984964 | S49: 63.00783461
B50: 30.875 | C50: 30.875 | D50: 1.25 | E50: 0.125 | F50: 29.5 | G50: 29.625 | H50: 75.04845238 | I50: =($H50*$H50*(I$17/1000)) -> 5.632270205 | J50: 11.26454041 | K50: 16.89681061 | L50: 22.52908082 | M50: 28.16135102 | N50: 33.79362123 | O50: 39.42589143 | P50: 45.05816164 | Q50: 50.69043184 | R50: 56.32270205 | S50: 61.95497225
B51: 30.625 | C51: 30.625 | D51: 1.25 | E51: 0.125 | F51: 29.25 | G51: 29.375 | H51: 74.41345238 | I51: 5.537361895 | J51: 11.07472379 | K51: 16.61208569 | L51: 22.14944758 | M51: 27.68680948 | N51: 33.22417137 | O51: 38.76153327 | P51: 44.29889516 | Q51: 49.83625706 | R51: 55.37361895 | S51: 60.91098085
B52: 30.375 | C52: 30.375 | D52: 1.25 | E52: 0.125 | F52: 29 | G52: 29.125 | H52: =(G52*2.54)-$H$6 -> 73.77845238 | I52: 5.443260036 | J52: 10.88652007 | K52: 16.32978011 | L52: 21.77304014 | M52: 27.21630018 | N52: 32.65956021 | O52: 38.10282025 | P52: 43.54608029 | Q52: 48.98934032 | R52: 54.43260036 | S52: 59.87586039
B53: 30.125 | C53: 30.125 | D53: 1.25 | E53: 0.125 | F53: 28.75 | G53: 28.875 | H53: 73.14345238 | I53: 5.349964626 | J53: 10.69992925 | K53: 16.04989388 | L53: 21.3998585 | M53: 26.74982313 | N53: 32.09978776 | O53: 37.44975238 | P53: 42.79971701 | Q53: 48.14968164 | R53: 53.49964626 | S53: 58.84961089
B54: 29.875 | C54: 29.875 | D54: 1.25 | E54: 0.125 | F54: 28.5 | G54: 28.625 | H54: 72.50845238 | I54: 5.257475667 | J54: 10.51495133 | K54: 15.772427 | L54: 21.02990267 | M54: 26.28737833 | N54: 31.544854 | O54: 36.80232967 | P54: 42.05980533 | Q54: 47.317281 | R54: 52.57475667 | S54: 57.83223233
B55: 29.625 | C55: 29.625 | D55: 1.25 | E55: 0.125 | F55: 28.25 | G55: 28.375 | H55: 71.87345238 | I55: 5.165793157 | J55: 10.33158631 | K55: 15.49737947 | L55: 20.66317263 | M55: 25.82896579 | N55: 30.99475894 | O55: 36.1605521 | P55: 41.32634526 | Q55: 46.49213841 | R55: 51.65793157 | S55: 56.82372473
B56: 29.375 | C56: 29.375 | D56: 1.25 | E56: 0.125 | F56: 28 | G56: 28.125 | H56: 71.23845238 | I56: 5.074917098 | J56: 10.1498342 | K56: 15.22475129 | L56: 20.29966839 | M56: 25.37458549 | N56: 30.44950259 | O56: 35.52441968 | P56: 40.59933678 | Q56: 45.67425388 | R56: 50.74917098 | S56: 55.82408807
B57: 29.125 | C57: 29.125 | D57: 1.25 | E57: 0.125 | F57: 27.75 | G57: 27.875 | H57: 70.60345238 | I57: 4.984847488 | J57: 9.969694976 | K57: 14.95454246 | L57: 19.93938995 | M57: 24.92423744 | N57: 29.90908493 | O57: 34.89393242 | P57: 39.8787799 | Q57: 44.86362739 | R57: 49.84847488 | S57: 54.83332237
B58: 28.875 | C58: 28.875 | D58: 1.25 | E58: 0.125 | F58: 27.5 | G58: 27.625 | H58: 69.96845238 | I58: 4.895584329 | J58: 9.791168657 | K58: 14.68675299 | L58: 19.58233731 | M58: 24.47792164 | N58: 29.37350597 | O58: 34.2690903 | P58: 39.16467463 | Q58: 44.06025896 | R58: 48.95584329 | S58: 53.85142761
B59: 28.625 | C59: 28.625 | D59: 1.25 | E59: 0.125 | F59: 27.25 | G59: 27.375 | H59: 69.33345238 | I59: 4.807127619 | J59: 9.614255238 | K59: 14.42138286 | L59: 19.22851048 | M59: 24.0356381 | N59: 28.84276571 | O59: 33.64989333 | P59: 38.45702095 | Q59: 43.26414857 | R59: 48.07127619 | S59: 52.87840381
B60: 28.375 | C60: 28.375 | D60: 1.25 | E60: 0.125 | F60: 27 | G60: 27.125 | H60: 68.69845238 | I60: =($H60*$H60*(I$17/1000)) -> 4.71947736 | J60: 9.438954719 | K60: 14.15843208 | L60: 18.87790944 | M60: 23.5973868 | N60: 28.31686416 | O60: 33.03634152 | P60: 37.75581888 | Q60: 42.47529624 | R60: 47.1947736 | S60: 51.91425095
B61: 28.125 | C61: 28.125 | D61: 1.25 | E61: 0.125 | F61: 26.75 | G61: 26.875 | H61: 68.06345238 | I61: 4.63263355 | J61: 9.2652671 | K61: 13.89790065 | L61: 18.5305342 | M61: 23.16316775 | N61: 27.7958013 | O61: 32.42843485 | P61: 37.0610684 | Q61: 41.69370195 | R61: 46.3263355 | S61: 50.95896905
B62: 27.875 | C62: 27.875 | D62: 1.25 | E62: 0.125 | F62: 26.5 | G62: 26.625 | H62: 67.42845238 | I62: 4.54659619 | J62: 9.093192381 | K62: 13.63978857 | L62: 18.18638476 | M62: 22.73298095 | N62: 27.27957714 | O62: 31.82617333 | P62: 36.37276952 | Q62: 40.91936571 | R62: 45.4659619 | S62: 50.0125581
B63: 27.625 | C63: 27.625 | D63: 1.25 | E63: 0.125 | F63: =C63-D63-E63 -> 26.25 | G63: =F63+E63 -> 26.375 | H63: 66.79345238 | I63: 4.461365281 | J63: 8.922730562 | K63: 13.38409584 | L63: 17.84546112 | M63: 22.3068264 | N63: 26.76819169 | O63: 31.22955697 | P63: 35.69092225 | Q63: 40.15228753 | R63: 44.61365281 | S63: 49.07501809
B64: 27.375 | C64: 27.375 | D64: 1.25 | E64: 0.125 | F64: 26 | G64: 26.125 | H64: 66.15845238 | I64: 4.376940821 | J64: 8.753881643 | K64: 13.13082246 | L64: 17.50776329 | M64: 21.88470411 | N64: 26.26164493 | O64: 30.63858575 | P64: 35.01552657 | Q64: 39.39246739 | R64: 43.76940821 | S64: 48.14634904
B65: 27.125 | C65: 27.125 | D65: 1.25 | E65: 0.125 | F65: 25.75 | G65: 25.875 | H65: 65.52345238 | I65: 4.293322812 | J65: 8.586645624 | K65: 12.87996844 | L65: 17.17329125 | M65: 21.46661406 | N65: 25.75993687 | O65: 30.05325968 | P65: 34.3465825 | Q65: 38.63990531 | R65: 42.93322812 | S65: 47.22655093
B66: 26.875 | C66: 26.875 | D66: 1.25 | E66: 0.125 | F66: 25.5 | G66: 25.625 | H66: 64.88845238 | I66: 4.210511252 | J66: 8.421022505 | K66: 12.63153376 | L66: 16.84204501 | M66: 21.05255626 | N66: 25.26306751 | O66: 29.47357877 | P66: 33.68409002 | Q66: 37.89460127 | R66: 42.10511252 | S66: 46.31562378
B67: 26.625 | C67: 26.625 | D67: 1.25 | E67: 0.125 | F67: 25.25 | G67: 25.375 | H67: 64.25345238 | I67: 4.128506143 | J67: 8.257012286 | K67: 12.38551843 | L67: 16.51402457 | M67: 20.64253071 | N67: 24.77103686 | O67: 28.899543 | P67: 33.02804914 | Q67: 37.15655529 | R67: 41.28506143 | S67: 45.41356757
B68: 26.375 | C68: 26.375 | D68: 1.25 | E68: 0.125 | F68: 25 | G68: 25.125 | H68: 63.61845238 | I68: 4.047307483 | J68: 8.094614967 | K68: 12.14192245 | L68: 16.18922993 | M68: 20.23653742 | N68: 24.2838449 | O68: 28.33115238 | P68: 32.37845987 | Q68: 36.42576735 | R68: 40.47307483 | S68: 44.52038232
B69: 26.125 | C69: 26.125 | D69: 1.25 | E69: 0.125 | F69: 24.75 | G69: 24.875 | H69: 62.98345238 | I69: 3.966915274 | J69: 7.933830548 | K69: 11.90074582 | L69: 15.8676611 | M69: 19.83457637 | N69: 23.80149164 | O69: 27.76840692 | P69: 31.73532219 | Q69: 35.70223746 | R69: 39.66915274 | S69: 43.63606801
B70: 25.875 | C70: =C69-$E$8 -> 25.875 | D70: 1.25 | E70: 0.125 | F70: 24.5 | G70: 24.625 | H70: 62.34845238 | I70: =($H70*$H70*(I$17/1000)) -> 3.887329514 | J70: 7.774659029 | K70: 11.66198854 | L70: 15.54931806 | M70: 19.43664757 | N70: 23.32397709 | O70: 27.2113066 | P70: 31.09863611 | Q70: 34.98596563 | R70: 38.87329514 | S70: 42.76062466
B71: 25.625 | C71: 25.625 | D71: 1.25 | E71: 0.125 | F71: 24.25 | G71: 24.375 | H71: 61.71345238 | I71: 3.808550205 | J71: 7.61710041 | K71: 11.42565061 | L71: 15.23420082 | M71: 19.04275102 | N71: 22.85130123 | O71: 26.65985143 | P71: 30.46840164 | Q71: 34.27695184 | R71: 38.08550205 | S71: 41.89405225
B72: 25.375 | C72: 25.375 | D72: 1.25 | E72: 0.125 | F72: 24 | G72: 24.125 | H72: 61.07845238 | I72: 3.730577345 | J72: 7.461154691 | K72: 11.19173204 | L72: 14.92230938 | M72: 18.65288673 | N72: 22.38346407 | O72: 26.11404142 | P72: 29.84461876 | Q72: 33.57519611 | R72: 37.30577345 | S72: 41.0363508
B73: 25.125 | C73: 25.125 | D73: 1.25 | E73: 0.125 | F73: 23.75 | G73: 23.875 | H73: 60.44345238 | I73: 3.653410936 | J73: 7.306821871 | K73: 10.96023281 | L73: 14.61364374 | M73: 18.26705468 | N73: 21.92046561 | O73: 25.57387655 | P73: 29.22728749 | Q73: 32.88069842 | R73: 36.53410936 | S73: 40.18752029
B74: 24.875 | C74: 24.875 | D74: 1.25 | E74: 0.125 | F74: =C74-D74-E74 -> 23.5 | G74: =F74+E74 -> 23.625 | H74: 59.80845238 | I74: 3.577050976 | J74: 7.154101952 | K74: 10.73115293 | L74: 14.3082039 | M74: 17.88525488 | N74: 21.46230586 | O74: 25.03935683 | P74: 28.61640781 | Q74: 32.19345879 | R74: 35.77050976 | S74: 39.34756074
B75: 24.625 | C75: 24.625 | D75: 1.25 | E75: 0.125 | F75: 23.25 | G75: 23.375 | H75: 59.17345238 | I75: 3.501497467 | J75: 7.002994933 | K75: 10.5044924 | L75: 14.00598987 | M75: 17.50748733 | N75: 21.0089848 | O75: 24.51048227 | P75: 28.01197973 | Q75: 31.5134772 | R75: 35.01497467 | S75: 38.51647213
B76: 24.375 | C76: 24.375 | D76: 1.25 | E76: 0.125 | F76: 23 | G76: 23.125 | H76: 58.53845238 | I76: 3.426750407 | J76: 6.853500814 | K76: 10.28025122 | L76: 13.70700163 | M76: 17.13375204 | N76: 20.56050244 | O76: 23.98725285 | P76: 27.41400326 | Q76: 30.84075366 | R76: 34.26750407 | S76: 37.69425448
B77: 24.125 | C77: 24.125 | D77: 1.25 | E77: 0.125 | F77: 22.75 | G77: 22.875 | H77: 57.90345238 | I77: 3.352809798 | J77: 6.705619595 | K77: 10.05842939 | L77: 13.41123919 | M77: 16.76404899 | N77: 20.11685879 | O77: 23.46966858 | P77: 26.82247838 | Q77: 30.17528818 | R77: 33.52809798 | S77: 36.88090777
B78: 23.875 | C78: 23.875 | D78: 1.25 | E78: 0.125 | F78: 22.5 | G78: 22.625 | H78: 57.26845238 | I78: 3.279675638 | J78: 6.559351276 | K78: 9.839026914 | L78: 13.11870255 | M78: 16.39837819 | N78: 19.67805383 | O78: 22.95772947 | P78: 26.2374051 | Q78: 29.51708074 | R78: 32.79675638 | S78: 36.07643202
B79: 23.625 | C79: 23.625 | D79: 1.25 | E79: 0.125 | F79: 22.25 | G79: 22.375 | H79: 56.63345238 | I79: 3.207347929 | J79: 6.414695857 | K79: 9.622043786 | L79: 12.82939171 | M79: 16.03673964 | N79: 19.24408757 | O79: 22.4514355 | P79: 25.65878343 | Q79: 28.86613136 | R79: 32.07347929 | S79: 35.28082721
B80: 23.375 | C80: 23.375 | D80: 1.25 | E80: 0.125 | F80: 22 | G80: 22.125 | H80: 55.99845238 | I80: =($H80*$H80*(I$17/1000)) -> 3.135826669 | J80: 6.271653338 | K80: 9.407480007 | L80: 12.54330668 | M80: 15.67913335 | N80: 18.81496001 | O80: 21.95078668 | P80: 25.08661335 | Q80: 28.22244002 | R80: 31.35826669 | S80: 34.49409336
B81: 23.125 | C81: 23.125 | D81: 1.25 | E81: 0.125 | F81: 21.75 | G81: 21.875 | H81: 55.36345238 | I81: 3.06511186 | J81: 6.130223719 | K81: 9.195335579 | L81: 12.26044744 | M81: 15.3255593 | N81: 18.39067116 | O81: 21.45578302 | P81: 24.52089488 | Q81: 27.58600674 | R81: 30.6511186 | S81: 33.71623045
B82: 22.875 | C82: 22.875 | D82: 1.25 | E82: 0.125 | F82: 21.5 | G82: 21.625 | H82: 54.72845238 | I82: 2.9952035 | J82: 5.990407 | K82: 8.9856105 | L82: 11.980814 | M82: 14.9760175 | N82: 17.971221 | O82: 20.9664245 | P82: 23.961628 | Q82: 26.9568315 | R82: 29.952035 | S82: 32.9472385
B83: 22.625 | C83: 22.625 | D83: 1.25 | E83: 0.125 | F83: 21.25 | G83: 21.375 | H83: 54.09345238 | I83: 2.92610159 | J83: 5.852203181 | K83: 8.778304771 | L83: 11.70440636 | M83: 14.63050795 | N83: 17.55660954 | O83: 20.48271113 | P83: 23.40881272 | Q83: 26.33491431 | R83: 29.2610159 | S83: 32.1871175
B84: 22.375 | C84: 22.375 | D84: 1.25 | E84: 0.125 | F84: 21 | G84: 21.125 | H84: =(G84*2.54)-$H$6 -> 53.45845238 | I84: 2.857806131 | J84: 5.715612262 | K84: 8.573418393 | L84: 11.43122452 | M84: 14.28903065 | N84: 17.14683679 | O84: 20.00464292 | P84: 22.86244905 | Q84: 25.72025518 | R84: 28.57806131 | S84: 31.43586744
B85: =C85 -> 22.125 | C85: 22.125 | D85: 1.25 | E85: 0.125 | F85: 20.75 | G85: 20.875 | H85: 52.82345238 | I85: 2.790317121 | J85: 5.580634243 | K85: 8.370951364 | L85: 11.16126849 | M85: 13.95158561 | N85: 16.74190273 | O85: 19.53221985 | P85: 22.32253697 | Q85: 25.11285409 | R85: 27.90317121 | S85: 30.69348834
B86: 21.875 | C86: 21.875 | D86: =D85 -> 1.25 | E86: =E85 -> 0.125 | F86: 20.5 | G86: 20.625 | H86: 52.18845238 | I86: 2.723634562 | J86: 5.447269124 | K86: 8.170903686 | L86: 10.89453825 | M86: 13.61817281 | N86: 16.34180737 | O86: 19.06544193 | P86: 21.7890765 | Q86: 24.51271106 | R86: 27.23634562 | S86: 29.95998018
B87: 21.625 | C87: 21.625 | D87: 1.25 | E87: 0.125 | F87: 20.25 | G87: 20.375 | H87: 51.55345238 | I87: 2.657758452 | J87: 5.315516905 | K87: 7.973275357 | L87: 10.63103381 | M87: 13.28879226 | N87: 15.94655071 | O87: 18.60430917 | P87: 21.26206762 | Q87: 23.91982607 | R87: 26.57758452 | S87: 29.23534298
B88: 21.375 | C88: 21.375 | D88: 1.25 | E88: 0.125 | F88: 20 | G88: 20.125 | H88: 50.91845238 | I88: 2.592688793 | J88: 5.185377586 | K88: 7.778066379 | L88: 10.37075517 | M88: 12.96344396 | N88: 15.55613276 | O88: 18.14882155 | P88: 20.74151034 | Q88: 23.33419914 | R88: 25.92688793 | S88: 28.51957672
B89: 21.125 | C89: 21.125 | D89: 1.25 | E89: 0.125 | F89: 19.75 | G89: 19.875 | H89: 50.28345238 | I89: 2.528425583 | J89: 5.056851167 | K89: 7.58527675 | L89: 10.11370233 | M89: 12.64212792 | N89: 15.1705535 | O89: 17.69897908 | P89: 20.22740467 | Q89: 22.75583025 | R89: 25.28425583 | S89: 27.81268142
B90: 20.875 | C90: 20.875 | D90: 1.25 | E90: 0.125 | F90: 19.5 | G90: 19.625 | H90: 49.64845238 | I90: =($H90*$H90*(I$17/1000)) -> 2.464968824 | J90: 4.929937648 | K90: 7.394906471 | L90: 9.859875295 | M90: 12.32484412 | N90: 14.78981294 | O90: 17.25478177 | P90: 19.71975059 | Q90: 22.18471941 | R90: 24.64968824 | S90: 27.11465706
B91: 20.625 | C91: 20.625 | D91: 1.25 | E91: 0.125 | F91: 19.25 | G91: 19.375 | H91: 49.01345238 | I91: 2.402318514 | J91: 4.804637029 | K91: 7.206955543 | L91: 9.609274057 | M91: 12.01159257 | N91: 14.41391109 | O91: 16.8162296 | P91: 19.21854811 | Q91: 21.62086663 | R91: 24.02318514 | S91: 26.42550366
B92: 20.375 | C92: 20.375 | D92: 1.25 | E92: 0.125 | F92: =C92-D92-E92 -> 19 | G92: =F92+E92 -> 19.125 | H92: 48.37845238 | I92: 2.340474655 | J92: 4.68094931 | K92: 7.021423964 | L92: 9.361898619 | M92: 11.70237327 | N92: 14.04284793 | O92: 16.38332258 | P92: 18.72379724 | Q92: 21.06427189 | R92: 23.40474655 | S92: 25.7452212
B93: 20.125 | C93: 20.125 | D93: 1.25 | E93: 0.125 | F93: 18.75 | G93: 18.875 | H93: 47.74345238 | I93: 2.279437245 | J93: 4.558874491 | K93: 6.838311736 | L93: 9.117748981 | M93: 11.39718623 | N93: 13.67662347 | O93: 15.95606072 | P93: 18.23549796 | Q93: 20.51493521 | R93: 22.79437245 | S93: 25.0738097
B94: 19.875 | C94: 19.875 | D94: 1.25 | E94: 0.125 | F94: 18.5 | G94: 18.625 | H94: 47.10845238 | I94: 2.219206286 | J94: 4.438412571 | K94: 6.657618857 | L94: 8.876825143 | M94: 11.09603143 | N94: 13.31523771 | O94: 15.534444 | P94: 17.75365029 | Q94: 19.97285657 | R94: 22.19206286 | S94: 24.41126914
B95: 19.625 | C95: 19.625 | D95: 1.25 | E95: 0.125 | F95: 18.25 | G95: 18.375 | H95: 46.47345238 | I95: 2.159781776 | J95: 4.319563552 | K95: 6.479345329 | L95: 8.639127105 | M95: 10.79890888 | N95: 12.95869066 | O95: 15.11847243 | P95: 17.27825421 | Q95: 19.43803599 | R95: 21.59781776 | S95: 23.75759954
B96: 19.375 | C96: 19.375 | D96: 1.25 | E96: 0.125 | F96: 18 | G96: 18.125 | H96: 45.83845238 | I96: 2.101163717 | J96: 4.202327433 | K96: 6.30349115 | L96: 8.404654867 | M96: 10.50581858 | N96: 12.6069823 | O96: 14.70814602 | P96: 16.80930973 | Q96: 18.91047345 | R96: 21.01163717 | S96: 23.11280088
B97: 19.125 | C97: 19.125 | D97: 1.25 | E97: 0.125 | F97: 17.75 | G97: 17.875 | H97: 45.20345238 | I97: 2.043352107 | J97: 4.086704214 | K97: 6.130056321 | L97: 8.173408429 | M97: 10.21676054 | N97: 12.26011264 | O97: 14.30346475 | P97: 16.34681686 | Q97: 18.39016896 | R97: 20.43352107 | S97: 22.47687318
B98: 18.875 | C98: 18.875 | D98: 1.25 | E98: 0.125 | F98: 17.5 | G98: 17.625 | H98: 44.56845238 | I98: 1.986346948 | J98: 3.972693895 | K98: 5.959040843 | L98: 7.945387791 | M98: 9.931734738 | N98: 11.91808169 | O98: 13.90442863 | P98: 15.89077558 | Q98: 17.87712253 | R98: 19.86346948 | S98: 21.84981642
B99: 18.625 | C99: 18.625 | D99: 1.25 | E99: 0.125 | F99: 17.25 | G99: 17.375 | H99: 43.93345238 | I99: 1.930148238 | J99: 3.860296476 | K99: 5.790444714 | L99: 7.720592952 | M99: 9.650741191 | N99: 11.58088943 | O99: 13.51103767 | P99: 15.4411859 | Q99: 17.37133414 | R99: 19.30148238 | S99: 21.23163062
B100: 18.375 | C100: 18.375 | D100: 1.25 | E100: 0.125 | F100: 17 | G100: 17.125 | H100: 43.29845238 | I100: =($H100*$H100*(I$17/1000)) -> 1.874755979 | J100: 3.749511957 | K100: 5.624267936 | L100: 7.499023914 | M100: 9.373779893 | N100: 11.24853587 | O100: 13.12329185 | P100: 14.99804783 | Q100: 16.87280381 | R100: 18.74755979 | S100: 20.62231576
B101: 18.125 | C101: 18.125 | D101: 1.25 | E101: 0.125 | F101: 16.75 | G101: 16.875 | H101: 42.66345238 | I101: 1.820170169 | J101: 3.640340338 | K101: 5.460510507 | L101: 7.280680676 | M101: 9.100850845 | N101: 10.92102101 | O101: 12.74119118 | P101: 14.56136135 | Q101: 16.38153152 | R101: 18.20170169 | S101: 20.02187186
B102: 17.875 | C102: =C101-$E$8 -> 17.875 | D102: 1.25 | E102: 0.125 | F102: 16.5 | G102: 16.625 | H102: 42.02845238 | I102: 1.76639081 | J102: 3.532781619 | K102: 5.299172429 | L102: 7.065563238 | M102: 8.831954048 | N102: 10.59834486 | O102: 12.36473567 | P102: 14.13112648 | Q102: 15.89751729 | R102: 17.6639081 | S102: 19.4302989
B103: 17.625 | C103: 17.625 | D103: 1.25 | E103: 0.125 | F103: 16.25 | G103: 16.375 | H103: 41.39345238 | I103: 1.7134179 | J103: 3.4268358 | K103: 5.1402537 | L103: 6.8536716 | M103: 8.5670895 | N103: 10.2805074 | O103: 11.9939253 | P103: 13.7073432 | Q103: 15.4207611 | R103: 17.134179 | S103: 18.8475969
B104: 17.375 | C104: 17.375 | D104: 1.25 | E104: 0.125 | F104: 16 | G104: 16.125 | H104: 40.75845238 | I104: 1.66125144 | J104: 3.322502881 | K104: 4.983754321 | L104: 6.645005762 | M104: 8.306257202 | N104: 9.967508643 | O104: 11.62876008 | P104: 13.29001152 | Q104: 14.95126296 | R104: 16.6125144 | S104: 18.27376585
B105: 17.125 | C105: 17.125 | D105: 1.25 | E105: 0.125 | F105: 15.75 | G105: 15.875 | H105: 40.12345238 | I105: 1.609891431 | J105: 3.219782862 | K105: 4.829674293 | L105: 6.439565724 | M105: 8.049457155 | N105: 9.659348586 | O105: 11.26924002 | P105: 12.87913145 | Q105: 14.48902288 | R105: 16.09891431 | S105: 17.70880574
B106: 16.875 | C106: 16.875 | D106: 1.25 | E106: 0.125 | F106: 15.5 | G106: 15.625 | H106: 39.48845238 | I106: 1.559337871 | J106: 3.118675743 | K106: 4.678013614 | L106: 6.237351486 | M106: 7.796689357 | N106: 9.356027229 | O106: 10.9153651 | P106: 12.47470297 | Q106: 14.03404084 | R106: 15.59337871 | S106: 17.15271659
B107: 16.625 | C107: 16.625 | D107: 1.25 | E107: 0.125 | F107: 15.25 | G107: 15.375 | H107: 38.85345238 | I107: 1.509590762 | J107: 3.019181524 | K107: 4.528772286 | L107: 6.038363048 | M107: 7.54795381 | N107: 9.057544572 | O107: 10.56713533 | P107: 12.0767261 | Q107: 13.58631686 | R107: 15.09590762 | S107: 16.60549838
B108: 16.375 | C108: 16.375 | D108: 1.25 | E108: 0.125 | F108: 15 | G108: 15.125 | H108: 38.21845238 | I108: 1.460650102 | J108: 2.921300205 | K108: 4.381950307 | L108: 5.84260041 | M108: 7.303250512 | N108: 8.763900614 | O108: 10.22455072 | P108: 11.68520082 | Q108: 13.14585092 | R108: 14.60650102 | S108: 16.06715113
A110: Range | B110: choice | C110: choosen
A111: 1 | B111: 0.125 | C111: 0
A112: 2 | B112: 0.0625
A113: 3 | B113: 0.03125
A114: 4 | B114: 10

Sheet MOI DRY FIT IMPERIAL (hidden)
G1: 1 | I1: 0
C2: PREFERED FRACTIONS ON CHART | I2: DIM CHART
C3: 1/8" | D3: 1/16" | E3: 1/32" | F3: 1,00"
C4: BASIC CLUB SPEC SET UP | I4: 1W | J4: 2W | K4: 3W | L4: 4W | M4: 5W | N4: 7W | O4: H1 | P4: H2 | Q4: H3 | R4: H4 | S4: H5 | T4: H6
C5: Grip Butt cap thickness | F5: 0.125 | I5: 44 | J5: 43.25 | K5: 42.75 | L5: 42.25 | M5: 41.75 | N5: 40.75 | O5: =I7+1.25 -> 40.75 | P5: 40.25 | Q5: 39.75 | R5: 39.25 | S5: 38.75 | T5: 38.25
C6: LENGTH between clubs | F6: 0.375 | I6: #2 | J6: #3 | K6: #4 | L6: #5 | M6: #6 | N6: #7 | O6: #8 | P6: #9 | Q6: PW | R6: GW | S6: SW | T6: LW
I7: =DataBase!M8+39.5 -> 39.5 | J7: =I7-0.5 -> 39 | K7: =J7-0.5 -> 38.5 | L7: 38 | M7: 37.5 | N7: 37 | O7: 36.5 | P7: 36 | Q7: =P7-0.25 -> 35.75 | R7: =Q7-0.25 -> 35.5 | S7: =R7-0.25 -> 35.25 | T7: =S7-0.25 -> 35
C8: LENGTH BETWEEN WEDGES | F8: 0.375 | I8: SUGGEST | J8: =C20 -> 39.375 | K8: =C21 -> 39 | L8: =C22 -> 38.625 | M8: =C23 -> 38.25 | N8: =C24 -> 37.875 | O8: =C25 -> 37.5 | P8: =C26 -> 37.125 | Q8: =C27 -> 36.75 | R8: =C28 -> 36.375 | S8: =C29 -> 36 | T8: =C30 -> 35.625
C9: CLUB IN WORK - GREEN CLUB ON THE CHART | I9: DIFFERENCE | J9: =J8-J7 -> 0.375 | K9: =K8-K7 -> 0.5 | L9: 0.625 | M9: 0.75 | N9: 0.875 | O9: 1 | P9: 1.125 | Q9: 1 | R9: 0.875 | S9: 0.75 | T9: 0.625
C10: BBGM-Bottom of bore to Ground. | F10: 1.25
C11: Play Length GREEN club in work | F11: 39.375 | Q11: MOI PROG | R11: 1.33 | S11: 1
C12: MOI-P TO ADD-GREEN CLUB | F12: 10 | Q12: MOI PR.MM | S12: =R11/S11 -> 1.33
C13: . =NEEDED WEIGTH IN GRAMS | F13: =F12/R13 -> 1.070778492 | I13: Grams | J13: 1 | K13: 1 | L13: LIGHTEST TIP W.-TIP W PROG. | O13: MOI points pr gram at this lenght | R13: =((I20*I20)*1)/1000 -> 9.338999682 | S13: Gr.MOI-P | T13: =R13/100 -> 0.09338999682
B16: SW PROGRESSION BETW.CLUBS | E16: =S13 -> Gr.MOI-P | F16: TIP WEIGHT AS GRAMS TO MOI POINT CHART | J16: Grams | K16: Grams | L16: Grams | M16: Grams | N16: Grams | O16: Grams | P16: Grams | Q16: Grams | R16: Grams | S16: Grams | T16: Grams
J17: =J13 -> 1 | K17: =J17+K13 -> 2 | L17: =K17+K13 -> 3 | M17: =L17+K13 -> 4 | N17: =M17+K13 -> 5 | O17: =N17+K13 -> 6 | P17: =O17+K13 -> 7 | Q17: =P17+K13 -> 8 | R17: =Q17+K13 -> 9 | S17: =R17+K13 -> 10 | T17: =S17+K13 -> 11
B18: CLUB | C18: Play lenght | D18: Play lenght | E18: BBGM | F18: Butt cap | G18: Net shaft | H18: Butt to tip | I18: Butt-tip Cm | J18: MOI Points | K18: MOI Points | L18: MOI Points | M18: MOI Points | N18: MOI Points | O18: MOI Points | P18: MOI Points | Q18: MOI Points | R18: MOI Points | S18: MOI Points | T18: MOI Points
B20: IN WORK | C20: =F11 -> 39.375 | D20: =C20 -> 39.375 | E20: =F10 -> 1.25 | F20: =F5 -> 0.125 | G20: =C20-E20-F20 -> 38 | H20: =G20+F20 -> 38.125 | I20: =(H20*2.54)-$T$117 -> 96.6385 | J20: =($I20*$I20*(J$17/1000)) -> 9.338999682 | K20: 18.67799936 | L20: 28.01699905 | M20: 37.35599873 | N20: 46.69499841 | O20: 56.03399809 | P20: 65.37299778 | Q20: 74.71199746 | R20: 84.05099714 | S20: 93.38999682 | T20: 102.7289965 | X20: gram | Y20: mm | Z20: pr mm | AA20: Just MM | AB20: BT Just | AE20: Matt
B21: #4 | C21: =C20-$F$6 -> 39 | D21: 39 | E21: =E20 -> 1.25 | F21: =F20 -> 0.125 | G21: 37.625 | H21: =G21+F21 -> 37.75 | I21: 95.686 | J21: 9.155810596 | K21: 18.31162119 | L21: 27.46743179 | M21: 36.62324238 | N21: 45.77905298 | O21: 54.93486358 | P21: 64.09067417 | Q21: 73.24648477 | R21: 82.40229536 | S21: 91.55810596 | T21: 100.7139166 | W21: 10 | X21: 9.8 | Y21: 25.8 | Z21: =Y21/X21 -> 2.632653061 | AA21: =(Y21/X21)*W21 -> 26.32653061 | AB21: =AA21/2 -> 13.16326531 | AE21: =AA21 -> 26.32653061
B22: #5 | C22: 38.625 | D22: 38.625 | E22: =E21 -> 1.25 | F22: 0.125 | G22: 37.25 | H22: 37.375 | I22: 94.7335 | J22: 8.974436022 | K22: 17.94887204 | L22: 26.92330807 | M22: 35.89774409 | N22: 44.87218011 | O22: 53.84661613 | P22: 62.82105216 | Q22: 71.79548818 | R22: 80.7699242 | S22: 89.74436022 | T22: 98.71879624 | W22: 9 | X22: 8.8 | Y22: 23.1 | Z22: =Y22/X22 -> 2.625 | AA22: =(Y22/X22)*W22 -> 23.625 | AB22: =AA22/2 -> 11.8125 | AE22: =AA21-2.4 -> 23.92653061
B23: #6 | C23: 38.25 | D23: 38.25 | E23: 1.25 | F23: 0.125 | G23: 36.875 | H23: 37 | I23: 93.781 | J23: 8.794875961 | K23: 17.58975192 | L23: 26.38462788 | M23: 35.17950384 | N23: 43.97437981 | O23: 52.76925577 | P23: 61.56413173 | Q23: 70.35900769 | R23: 79.15388365 | S23: 87.94875961 | T23: 96.74363557 | W23: 8 | X23: 7.8 | Y23: 20.6 | Z23: 2.641025641 | AA23: 21.12820513 | AB23: 10.56410256 | AE23: =AA22-2.4 -> 21.225
B24: #7 | C24: 37.875 | D24: 37.875 | E24: 1.25 | F24: 0.125 | G24: 36.5 | H24: 36.625 | I24: 92.8285 | J24: 8.617130412 | K24: 17.23426082 | L24: 25.85139124 | M24: 34.46852165 | N24: 43.08565206 | O24: 51.70278247 | P24: 60.31991289 | Q24: 68.9370433 | R24: 77.55417371 | S24: 86.17130412 | T24: 94.78843453 | W24: 7 | X24: 6.8 | Y24: 18 | Z24: 2.647058824 | AA24: 18.52941176 | AB24: 9.264705882 | AE24: 18.72820513
B25: #8 | C25: 37.5 | D25: 37.5 | E25: 1.25 | F25: 0.125 | G25: 36.125 | H25: 36.25 | I25: 91.876 | J25: 8.441199376 | K25: 16.88239875 | L25: 25.32359813 | M25: 33.7647975 | N25: 42.20599688 | O25: 50.64719626 | P25: 59.08839563 | Q25: 67.52959501 | R25: 75.97079438 | S25: 84.41199376 | T25: 92.85319314 | W25: 6 | X25: 5.8 | Y25: 15.4 | Z25: 2.655172414 | AA25: 15.93103448 | AB25: 7.965517241 | AE25: 16.12941176
B26: #9 | C26: 37.125 | D26: 37.125 | E26: 1.25 | F26: 0.125 | G26: 35.75 | H26: 35.875 | I26: 90.9235 | J26: 8.267082852 | K26: 16.5341657 | L26: 24.80124856 | M26: 33.06833141 | N26: 41.33541426 | O26: 49.60249711 | P26: 57.86957997 | Q26: 66.13666282 | R26: 74.40374567 | S26: 82.67082852 | T26: 90.93791137 | W26: 5 | X26: 4.8 | Y26: 12.8 | Z26: 2.666666667 | AA26: 13.33333333 | AB26: 6.666666667 | AE26: 13.53103448
B27: ="#"&"PW" -> #PW | C27: =C26-$F$8 -> 36.75 | D27: 36.75 | E27: 1.25 | F27: 0.125 | G27: 35.375 | H27: 35.5 | I27: 89.971 | J27: 8.094780841 | K27: 16.18956168 | L27: 24.28434252 | M27: 32.37912336 | N27: 40.47390421 | O27: 48.56868505 | P27: 56.66346589 | Q27: 64.75824673 | R27: 72.85302757 | S27: 80.94780841 | T27: 89.04258925 | W27: 4 | X27: 3.8 | Y27: 10.2 | Z27: 2.684210526 | AA27: 10.73684211 | AB27: 5.368421053 | AE27: 10.93333333
B28: #GW | C28: 36.375 | D28: 36.375 | E28: 1.25 | F28: 0.125 | G28: 35 | H28: 35.125 | I28: 89.0185 | J28: 7.924293342 | K28: 15.84858668 | L28: 23.77288003 | M28: 31.69717337 | N28: 39.62146671 | O28: 47.54576005 | P28: 55.4700534 | Q28: 63.39434674 | R28: 71.31864008 | S28: 79.24293342 | T28: 87.16722676 | W28: 3 | X28: 2.8 | Y28: 7.6 | Z28: 2.714285714 | AA28: 8.142857143 | AB28: 4.071428571 | AE28: 8.336842105
B29: #SW | C29: 36 | D29: 36 | E29: 1.25 | F29: 0.125 | G29: 34.625 | H29: 34.75 | I29: 88.066 | J29: 7.755620356 | K29: 15.51124071 | L29: 23.26686107 | M29: 31.02248142 | N29: 38.77810178 | O29: 46.53372214 | P29: 54.28934249 | Q29: 62.04496285 | R29: 69.8005832 | S29: 77.55620356 | T29: 85.31182392 | W29: 2 | X29: 2.1 | Y29: 6.7 | Z29: 3.19047619 | AA29: 6.380952381 | AB29: 3.19047619 | AE29: 5.742857143
B30: #LW | C30: 35.625 | D30: 35.625 | E30: 1.25 | F30: 0.125 | G30: 34.25 | H30: 34.375 | I30: 87.1135 | J30: 7.588761882 | K30: 15.17752376 | L30: 22.76628565 | M30: 30.35504753 | N30: 37.94380941 | O30: 45.53257129 | P30: 53.12133318 | Q30: 60.71009506 | R30: 68.29885694 | S30: 75.88761882 | T30: 83.4763807 | W30: 1 | X30: 1.1 | Y30: 3 | Z30: 2.727272727 | AA30: 2.727272727 | AB30: 1.363636364 | AE30: 3.980952381
C31: 35.25 | D31: 35.25 | E31: 1.25 | F31: 0.125 | G31: 33.875 | H31: 34 | I31: 86.161 | J31: 7.423717921 | K31: 14.84743584 | L31: 22.27115376 | M31: 29.69487168 | N31: 37.11858961 | O31: 44.54230753 | P31: 51.96602545 | Q31: 59.38974337 | R31: 66.81346129 | S31: 74.23717921 | T31: 81.66089713
C32: 34.875 | D32: 34.875 | E32: 1.25 | F32: 0.125 | G32: 33.5 | H32: 33.625 | I32: 85.2085 | J32: 7.260488472 | K32: 14.52097694 | L32: 21.78146542 | M32: 29.04195389 | N32: 36.30244236 | O32: 43.56293083 | P32: 50.82341931 | Q32: 58.08390778 | R32: 65.34439625 | S32: 72.60488472 | T32: 79.86537319
C33: 34.5 | D33: 34.5 | E33: 1.25 | F33: 0.125 | G33: 33.125 | H33: 33.25 | I33: 84.256 | J33: 7.099073536 | K33: 14.19814707 | L33: 21.29722061 | M33: 28.39629414 | N33: 35.49536768 | O33: 42.59444122 | P33: 49.69351475 | Q33: 56.79258829 | R33: 63.89166182 | S33: 70.99073536 | T33: 78.0898089
C34: 34.125 | D34: 34.125 | E34: 1.25 | F34: 0.125 | G34: 32.75 | H34: 32.875 | I34: 83.3035 | J34: 6.939473112 | K34: 13.87894622 | L34: 20.81841934 | M34: 27.75789245 | N34: 34.69736556 | O34: 41.63683867 | P34: 48.57631179 | Q34: 55.5157849 | R34: 62.45525801 | S34: 69.39473112 | T34: 76.33420423
C35: 33.75 | D35: 33.75 | E35: 1.25 | F35: 0.125 | G35: 32.375 | H35: 32.5 | I35: 82.351 | J35: 6.781687201 | K35: 13.5633744 | L35: 20.3450616 | M35: 27.1267488 | N35: 33.908436 | O35: 40.69012321 | P35: 47.47181041 | Q35: 54.25349761 | R35: 61.03518481 | S35: 67.81687201 | T35: 74.59855921
C36: =D36 ->  | D36: =#REF!-$F$8 ->  | E36: =#REF! ->  | F36: =#REF! ->  | G36: =D36-E36-F36 ->  | J36: =($I36*$I36*(J$17/1000)) -> 
D37: =D36-$F$8 ->  | E37: =E36 ->  | G37: =D37-E37-F37 ->  | H37: =G37+F37 -> 
G38: =D38-E38-F38 ->  | H38: =G38+F38 -> 
J51: =($I51*$I51*(J$17/1000)) -> 
I52: =(H52*2.54)-$T$117 -> 
E53: =E52 -> 
J67: =($I67*$I67*(J$17/1000)) -> 
E69: =E68 -> 
J83: =($I83*$I83*(J$17/1000)) -> 
I84: =(H84*2.54)-$T$117 -> 
E85: =E84 -> 
J99: =($I99*$I99*(J$17/1000)) -> 
C100: =D100 -> 
D101: =D100-$F$8 ->  | E101: =E100 -> 
G102: =D102-E102-F102 ->  | H102: =G102+F102 -> 
I115: 0 | J115: =DataBase!C3 -> 1 | K115: =DataBase!D3 -> 2 | L115: =DataBase!E3 -> 3 | M115: =DataBase!F3 -> 4 | N115: =DataBase!G3 -> 5 | O115: =DataBase!H3 -> 6 | P115: =DataBase!I3 -> 7 | Q115: =DataBase!J3 -> 8 | R115: =DataBase!K3 -> 9 | S115: =DataBase!L3 -> 10 | T115: Grams
I116: 0 | J116: =DataBase!C4 -> 3.98 | K116: =DataBase!D4 -> 5.74 | L116: =DataBase!E4 -> 8.3 | M116: =DataBase!F4 -> 10.9 | N116: =DataBase!G4 -> 13.5 | O116: =DataBase!H4 -> 16.1 | P116: =DataBase!I4 -> 18.7 | Q116: =DataBase!J4 -> 21.2 | R116: =DataBase!K4 -> 23.9 | S116: =DataBase!L4 -> 26.3 | T116: mm
J117: =DataBase!C5 -> 0 | K117: =DataBase!D5 -> 0 | L117: =DataBase!E5 -> 0 | M117: =DataBase!F5 -> 0 | N117: =DataBase!G5 -> 0 | O117: =DataBase!H5 -> 0 | P117: =DataBase!I5 -> 0 | Q117: =DataBase!J5 -> 0 | R117: =DataBase!K5 -> 0 | S117: =DataBase!L5 -> 0 | T117: =LOOKUP(J13,I115:R115,I118:R118) -> 0.199
I118: 0 | J118: =DataBase!C6 -> 0.199 | K118: =DataBase!D6 -> 0.287 | L118: =DataBase!E6 -> 0.415 | M118: =DataBase!F6 -> 0.545 | N118: =DataBase!G6 -> 0.675 | O118: =DataBase!H6 -> 0.805 | P118: =DataBase!I6 -> 0.935 | Q118: =DataBase!J6 -> 1.06 | R118: =DataBase!K6 -> 1.195 | S118: =DataBase!L6 -> 1.315 | T118: BT corr

Sheet DataBase (hidden)
B2: TIP WEIGHT SPECS
B3: 0 | C3: 1 | D3: 2 | E3: 3 | F3: 4 | G3: 5 | H3: 6 | I3: 7 | J3: 8 | K3: 9 | L3: 10 | M3: Grams
B4: 0 | C4: 3.98 | D4: 5.74 | E4: 8.3 | F4: 10.9 | G4: 13.5 | H4: 16.1 | I4: 18.7 | J4: 21.2 | K4: 23.9 | L4: 26.3 | M4: mm
M5: =LOOKUP('MOI DRY FIT METRIC'!J17,B3:K3,B6:K6) -> 0.415 | N5: Formula error
B6: 0 | C6: =(C4/2)/10 -> 0.199 | D6: 0.287 | E6: 0.415 | F6: 0.545 | G6: 0.675 | H6: 0.805 | I6: 0.935 | J6: 1.06 | K6: 1.195 | L6: 1.315 | M6: BT corr
A9: SW PROGRESSION PR INCH
A11: MOI - 1.33 SWP / INCH | B11: 1.32 | C11: 1 | D11: 1 | E11: =LOOKUP(D11,C11:C24,B11:B24) -> 1.32
A12: 1.2 SWP / INCH | B12: =1.2 -> 1.2 | C12: =C11+1 -> 2
A13: 1.1 SWP / INCH | B13: =B12-0.1 -> 1.1 | C13: =C12+1 -> 3
A14: DIY - 1.0 SWP / INCH | B14: =B13-0.1 -> 1 | C14: 4
A15: 0.9 SWP / INCH | B15: 0.9 | C15: 5
A16: 4" FULCRUM - 0.8 SWP INCH | B16: 0.8 | C16: 6
A17: 0.7 SWP / INCH | B17: 0.7 | C17: 7
A18: 0.6 SWP / INCH | B18: 0.6 | C18: 8
A19: 0.5 SWP / INCH | B19: 0.5 | C19: 9
A20: 0.4 SWP / INCH | B20: 0.4 | C20: 10
A21: 0.3 SWP / INCH | B21: 0.3 | C21: 11
A22: 0.2 SWP / INCH | B22: 0.2 | C22: 12
A23: 0.1 SWP / INCH | B23: 0.1 | C23: 13
A24: FLAT SW - CLASSIC | B24: 0 | C24: 14

Sheet MOI DRY FIT METRIC
M1: SW TUNER | Q1: =IF(Q2 <>1000,(Q2-1000)/10,"0") -> 0 | R1: =IF(R2 <>1000,(R2-1000)/10,"0") -> 0 | S1: =IF(S2 <>1000,(S2-1000)/10,"0") -> 0 | T1: =IF(T2 <>1000,(T2-1000)/10,"0") -> 0
C2: PLAY LENGTH | E2: BAL.POINT | F2: TOTAL | H2: WEDGE | J2: #3 IRON | K2: WEDGE | L2: IRON | M2: 35.87 | Q2: 1000 | R2: 1000 | S2: 1000 | T2: 1000
B3: FRACTION | C3: INDEX | E3: SPINNER | F3: SPINNER | H3: MOI | J3: PLAY MM | K3: L - DIFF | L3: L - DIFF | O3: 1000 | Q3: 1000 | R3: 1000 | S3: 1000 | T3: 1000
B4: 1 | C4: 13 | E4: 7390 | F4: 4116 | G4: 5 | H4: TRUE | J4: 924 | K4: 63 | L4: 95 | O4: 30 | P4: =O4/10 -> 3 | Q4: =IF(Q3<>1000,(Q3/20)-50,"0") -> 0 | R4: =IF(R3<>1000,(R3/20)-50,"0") -> 0 | S4: 0 | T4: 0
C6: 1/8" | D6: 1/16" | E6: 1/32" | F6: 1,00" | I6: NAME | M6: HEADS | P6: SHAFTS | S6: SET UP | U6: gw
B8: =F8/25.4 -> 0.125984252 | C8: GRIP CAP THICKNESS | F8: 3.2 | I8: inch | J8: =J10/25.4 -> 0.4375 | K8: =K10/25.4 -> 0.40625 | L8: 0.375 | M8: 0.34375 | N8: 0.3125 | O8: 0.28125 | P8: 0.25 | Q8: 0.21875 | R8: 0.1875 | S8: 0.15625 | T8: =T10/25.4 -> 0.125 | AK8: 25
B9: =F9/25.4 -> 1.251968504 | C9: =G9/25.4 -> 1.625984252 | D9: BBGM - IRON - WEDGE | F9: 31.8 | G9: 41.3 | I9: inch | J9: 0.4375 | K9: 0.40625 | L9: 0.375 | M9: 0.34375 | N9: 0.3125 | O9: 0.28125 | P9: 0.25 | Q9: 0.21875 | R9: 0.1875 | S9: 0.15625 | T9: 0.125
B10: =F10/25.4 -> 0.374015748 | C10: LENGTH BETWEEN IRONS | F10: =L4/10 -> 9.5 | I10: INCH/MM | J10: =J9*25.4 -> 11.1125 | K10: =K9*25.4 -> 10.31875 | L10: 9.525 | M10: 8.73125 | N10: 7.9375 | O10: 7.14375 | P10: 6.35 | Q10: 5.55625 | R10: 4.7625 | S10: 3.96875 | T10: 3.175
I11: #2 | J11: #3 | K11: #4 | L11: #5 | M11: #6 | N11: #7 | O11: #8 | P11: #9 | Q11: =IF(Q2=1000,"PW",Q1) -> PW | R11: =IF(R2=1000,"GW",R1) -> GW | S11: =IF(S2=1000,"SW",S1) -> SW | T11: =IF(T2=1000,"LW",T1) -> LW
B12: =F12/25.4 -> 0.2480314961 | C12: LENGTH BETWEEN WEDGES | F12: =K4/10 -> 6.3 | I12: =PRINT!I6 -> 0.5 | J12: =39+F61 -> 39.5 | K12: =J12-0.5 -> 39 | L12: 38.5 | M12: 38 | N12: 37.5 | O12: 37 | P12: 36.5 | Q12: =P12-0.25 -> 36.25 | R12: =Q12-0.25 -> 36 | S12: =R12-0.25 -> 35.75 | T12: =S12-0.25 -> 35.5
B13: IMPERIAL | F13: #8 IRON - METRIC | I13: THIS SET | J13: =C22/2.54 -> 38.2480315 | K13: =C23/2.54 -> 37.87401575 | L13: =C24/2.54 -> 37.5 | M13: =C25/2.54 -> 37.12598425 | N13: =C26/2.54 -> 36.7519685 | O13: =C27/2.54 -> 36.37795276 | P13: =C28/2.54 -> 36.00393701 | Q13: =(C29)/2.54 -> 35.75590551 | R13: =(C30)/2.54 -> 35.50787402 | S13: =(C31)/2.54 -> 35.25984252 | T13: =(C32)/2.54 -> 35.01181102
B14: =F14/2.54 -> 36.37795276 | F14: =J4/10 -> 92.4 | I14: DIFF | J14: =J13-J12 -> -1.251968504 | K14: -1.125984252 | L14: -1 | M14: -0.874015748 | N14: -0.7480314961 | O14: -0.6220472441 | P14: -0.4960629921 | Q14: -0.4940944882 | R14: -0.4921259843 | S14: -0.4901574803 | T14: -0.4881889764
C15: IRONS SWP | D15: STD.SW | E15: WEDGE SWP | P15: WEDGE PLAY LENGTH TUNER
C16: MOI-POINTS TO ADD | F16: 29.5
C17: NEEDED WEIGTH IN GRAMS | F17: =F16/R17 -> 3.145015324 | I17: Grams | J17: 3.02 | K17: 0.065 | L17: LIGHTEST TIP W.-TIP W PROG. | O17: MOI points pr gram at this lenght | R17: =((U22*U22)*1)/1000 -> 9.3799225 | S17: Gr.MOI-P | T17: =R17/100 -> 0.093799225
B19: SW PROGRESSION BETW.CLUBS | E19: =(1.33/25.4)*F10 -> 0.4974409449 | F19: =(1.33/25.4)*F12 -> 0.3298818898 | G19: SW PROG. WEDGES | J19: Grams | K19: Grams | L19: Grams | M19: Grams | N19: Grams | O19: Grams | P19: Grams | Q19: Grams | R19: Grams | S19: Grams | T19: Grams
J20: =J17 -> 3.02 | K20: =J20+K17 -> 3.085 | L20: =K20+K17 -> 3.15 | M20: =L20+K17 -> 3.215 | N20: =M20+K17 -> 3.28 | O20: =N20+K17 -> 3.345 | P20: =O20+K17 -> 3.41 | Q20: =P20+K17 -> 3.475 | R20: =Q20+K17 -> 3.54 | S20: =R20+K17 -> 3.605 | T20: =S20+K17 -> 3.67
B21: CLUB SW+ | C21: METRIC | D21: Play lenght | E21: Net shaft | J21: MOI Points | K21: MOI Points | L21: MOI Points | M21: MOI Points | N21: MOI Points | O21: MOI Points | P21: MOI Points | Q21: MOI Points | R21: MOI Points | S21: MOI Points | T21: MOI Points | U21: Butt to tip | AH21: Butt-tip Cm
B22: #3 | C22: =C23+($F$10/10) -> 97.15 | D22: =C22/2.54 -> 38.2480315 | E22: =C22-($F$9/10)-($F$8/10) -> 93.65 | G22: 36.5 | H22: =G22*2.54 -> 92.71 | J22: =($U22*$U22*(J$20/1000)) -> 28.32736595 | K22: 28.93706091 | L22: 29.54675588 | M22: 30.15645084 | N22: 30.7661458 | O22: 31.37584076 | P22: 31.98553573 | Q22: 32.59523069 | R22: 33.20492565 | S22: 33.81462061 | T22: 34.42431558 | U22: =E22+($F$8) -> 96.85 | X22: gram | Y22: mm | Z22: pr mm | AA22: Just MM | AB22: BT Just | AE22: Matt | AH22: =(U22*2.54)-DataBase!$M$5 -> 245.584
B23: #4 | C23: =C24+($F$10/10) -> 96.2 | D23: =C23/2.54 -> 37.87401575 | E23: 92.7 | J23: 27.7743662 | K23: 28.37215885 | L23: 28.9699515 | M23: 29.56774415 | N23: 30.1655368 | O23: 30.76332945 | P23: 31.3611221 | Q23: 31.95891475 | R23: 32.5567074 | S23: 33.15450005 | T23: 33.7522927 | U23: =E23+($F$8) -> 95.9 | W23: 10 | X23: 9.8 | Y23: 25.8 | Z23: =Y23/X23 -> 2.632653061 | AA23: =(Y23/X23)*W23 -> 26.32653061 | AB23: =AA23/2 -> 13.16326531 | AE23: =AA23 -> 26.32653061 | AH23: =(U23*2.54)-DataBase!$M$5 -> 243.171
B24: #5 | C24: =C25+($F$10/10) -> 95.25 | D24: 37.5 | E24: 91.75 | J24: 27.22681755 | K24: 27.81282521 | L24: 28.39883288 | M24: 28.98484054 | N24: 29.5708482 | O24: 30.15685586 | P24: 30.74286353 | Q24: 31.32887119 | R24: 31.91487885 | S24: 32.50088651 | T24: 33.08689418 | U24: 94.95 | W24: 9 | X24: 8.8 | Y24: 23.1 | Z24: =Y24/X24 -> 2.625 | AA24: =(Y24/X24)*W24 -> 23.625 | AB24: =AA24/2 -> 11.8125 | AE24: =AA23-2.4 -> 23.92653061 | AH24: =(U24*2.54)-DataBase!$M$5 -> 240.758
B25: #6 | C25: =C26+($F$10/10) -> 94.3 | D25: 37.12598425 | E25: 90.8 | J25: 26.68472 | K25: 27.25906 | L25: 27.8334 | M25: 28.40774 | N25: 28.98208 | O25: 29.55642 | P25: 30.13076 | Q25: 30.7051 | R25: 31.27944 | S25: 31.85378 | T25: 32.42812 | U25: 94 | W25: 8 | X25: 7.8 | Y25: 20.6 | Z25: 2.641025641 | AA25: 21.12820513 | AB25: 10.56410256 | AE25: =AA24-2.4 -> 21.225 | AH25: =(U25*2.54)-DataBase!$M$5 -> 238.345
B26: #7 | C26: =C27+($F$10/10) -> 93.35 | D26: 36.7519685 | E26: 89.85 | J26: 26.14807355 | K26: 26.71086321 | L26: 27.27365288 | M26: 27.83644254 | N26: 28.3992322 | O26: 28.96202186 | P26: 29.52481153 | Q26: 30.08760119 | R26: 30.65039085 | S26: 31.21318051 | T26: 31.77597018 | U26: 93.05 | W26: 7 | X26: 6.8 | Y26: 18 | Z26: 2.647058824 | AA26: 18.52941176 | AB26: 9.264705882 | AE26: 18.72820513 | AH26: =(U26*2.54)-DataBase!$M$5 -> 235.932
B27: #8 | C27: =F14 -> 92.4 | D27: 36.37795276 | E27: 88.9 | J27: 25.6168782 | K27: 26.16823485 | L27: 26.7195915 | M27: 27.27094815 | N27: 27.8223048 | O27: 28.37366145 | P27: 28.9250181 | Q27: 29.47637475 | R27: 30.0277314 | S27: 30.57908805 | T27: 31.1304447 | U27: 92.1 | W27: 6 | X27: 5.8 | Y27: 15.4 | Z27: 2.655172414 | AA27: 15.93103448 | AB27: 7.965517241 | AE27: 16.12941176 | AH27: =(U27*2.54)-DataBase!$M$5 -> 233.519
B28: #9 | C28: =C27-($F$10/10) -> 91.45 | D28: 36.00393701 | E28: 87.95 | J28: 25.09113395 | K28: 25.63117491 | L28: 26.17121588 | M28: 26.71125684 | N28: 27.2512978 | O28: 27.79133876 | P28: 28.33137972 | Q28: 28.87142069 | R28: 29.41146165 | S28: 29.95150261 | T28: 30.49154357 | U28: 91.15 | W28: 5 | X28: 4.8 | Y28: 12.8 | Z28: 2.666666667 | AA28: 13.33333333 | AB28: 6.666666667 | AE28: 13.53103448 | AH28: =(U28*2.54)-DataBase!$M$5 -> 231.106
B29: PW | C29: =C28-($F$12/10)+Q1 -> 90.82 | D29: 35.75590551 | E29: =C29-($G$9/10)-($F$8/10) -> 86.37 | J29: 24.2288104 | K29: 24.75029142 | L29: 25.27177244 | M29: 25.79325345 | N29: 26.31473447 | O29: 26.83621549 | P29: 27.35769651 | Q29: 27.87917753 | R29: 28.40065855 | S29: 28.92213956 | T29: 29.44362058 | U29: 89.57 | W29: 4 | X29: 3.8 | Y29: 10.2 | Z29: 2.684210526 | AA29: 10.73684211 | AB29: 5.368421053 | AE29: 10.93333333 | AH29: =(U29*2.54)-DataBase!$M$5 -> 227.0928
B30: GW | C30: =C29-($F$12/10)+R1 -> 90.19 | D30: 35.50787402 | E30: =C30-($G$9/10)-($F$8/10) -> 85.74 | J30: 23.88917727 | K30: 24.40334831 | L30: 24.91751934 | M30: 25.43169037 | N30: 25.94586141 | O30: 26.46003244 | P30: 26.97420348 | Q30: 27.48837451 | R30: 28.00254554 | S30: 28.51671658 | T30: 29.03088761 | U30: 88.94 | W30: 3 | X30: 2.8 | Y30: 7.6 | Z30: 2.714285714 | AA30: 8.142857143 | AB30: 4.071428571 | AE30: 8.336842105 | AH30: =(U30*2.54)-DataBase!$M$5 -> 225.4926
B31: SW | C31: =C30-($F$12/10)+S1 -> 89.56 | D31: 35.25984252 | E31: =C31-($G$9/10)-($F$8/10) -> 85.11 | J31: 23.55194142 | K31: 24.05885407 | L31: 24.56576672 | M31: 25.07267936 | N31: 25.57959201 | O31: 26.08650465 | P31: 26.5934173 | Q31: 27.10032995 | R31: 27.60724259 | S31: 28.11415524 | T31: 28.62106789 | U31: 88.31 | W31: 2 | X31: 2.1 | Y31: 6.7 | Z31: 3.19047619 | AA31: 6.380952381 | AB31: 3.19047619 | AE31: 5.742857143 | AH31: =(U31*2.54)-DataBase!$M$5 -> 223.8924
B32: LW | C32: =C31-($F$12/10)+T1 -> 88.93 | D32: 35.01181102 | E32: =C32-($G$9/10)-($F$8/10) -> 84.48 | J32: 23.21710285 | K32: 23.7168087 | L32: 24.21651456 | M32: 24.71622042 | N32: 25.21592627 | O32: 25.71563213 | P32: 26.21533798 | Q32: 26.71504384 | R32: 27.2147497 | S32: 27.71445555 | T32: 28.21416141 | U32: 87.68 | W32: 1 | X32: 1.1 | Y32: 3 | Z32: 2.727272727 | AA32: 2.727272727 | AB32: 1.363636364 | AE32: 3.980952381 | AH32: =(U32*2.54)-DataBase!$M$5 -> 222.2922
C33: =(DataBase!E11/25.4)*F10 -> 0.4937007874 | D33: 2 | E33: =(1.33/25.4)*F12 -> 0.3298818898
P34: WEDGE SWING WEIGHT TUNER
B35: CLUB | C35: METRIC P | D35: PLAY LENGTH | E35: NET.SHAFT | F35: NET.SHAFT | J35: #3 | K35: #4 | L35: #5 | M35: #6 | N35: #7 | O35: #8 | P35: #9 | Q35: =IF(Q3=1000,"PW",Q4) -> PW | R35: =IF(R3=1000,"GW",R4) -> GW | S35: =IF(S3=1000,"SW",S4) -> SW | T35: =IF(T3=1000,"LW",T4) -> LW
B36: #3 | C36: =C22 -> 97.15 | D36: =C36/2.54 -> 38.2480315 | E36: =F36/2.54 -> 36.87007874 | F36: =C36-($F$9/10)-($F$8/10) -> 93.65 | G36: PLAY LENGTH DIFFERENCE MILLIMETER | J36: =(J13-J12)*25.4 -> -31.8 | K36: -28.6 | L36: -25.4 | M36: -22.2 | N36: -19 | O36: -15.8 | P36: -12.6 | Q36: =(Q13-Q12)*25.4 -> -12.55 | R36: =(R13-R12)*25.4 -> -12.5 | S36: =(S13-S12)*25.4 -> -12.45 | T36: =(T13-T12)*25.4 -> -12.4
B37: #4 | C37: =C23 -> 96.2 | D37: =C37/2.54 -> 37.87401575 | E37: =F37/2.54 -> 36.49606299 | F37: =C37-($F$9/10)-($F$8/10) -> 92.7 | G37: NEW SW AFTER LENGTH ADJUSTMENT | J37: =J57+2 -> -5.511811024 | K37: -4.755905512 | L37: -4 | M37: -3.244094488 | N37: -2.488188976 | O37: -1.732283465 | P37: -0.9763779528 | Q37: =(Q57+2)+Q4 -> -0.9645669291 | R37: =R57+3+R4 -> 0.04724409449 | S37: =S57+5+S4 -> 2.059055118 | T37: =T57+5+T4 -> 2.070866142
B38: #5 | C38: 95.25 | D38: 37.5 | E38: 36.12204724 | F38: 91.75 | G38: =IF(P4<>0,P4,"SW TUNER") -> 3 | J38: =K38-C33 -> -1.200787402 | K38: =L38-C33 -> -0.7070866142 | L38: =M38-C33 -> -0.2133858268 | M38: =N38-C33 -> 0.2803149606 | N38: =O38-C33 -> 0.774015748 | O38: =O57+P4+D33 -> 1.267716535 | P38: =O38+C33 -> 1.761417323 | Q38: =O38+Q56+Q4 -> 2.091299213 | R38: =O38+R56+R4 -> 2.421181102 | S38: =O38+S56+S4 -> 2.751062992 | T38: =O38+T56+T4 -> 3.080944882
B39: #6 | C39: 94.3 | D39: 37.12598425 | E39: 35.7480315 | F39: 90.8 | G39: SWP CORRECTION NEEDED | J39: =J38-J37-J55 -> 4.311023622 | K39: =K38-K37-K55 -> 4.048818898 | L39: 3.786614173 | M39: 3.524409449 | N39: 3.262204724 | O39: 3 | P39: 2.737795276 | Q39: 3.055866142 | R39: 2.373937008 | S39: 0.692007874 | T39: 1.01007874
B40: #7 | C40: 93.35 | D40: 36.7519685 | E40: 35.37401575 | F40: 89.85 | G40: GRAMS NEEDED | J40: =J39*J42 -> 8.406496063 | K40: 8.057149606 | L40: 7.686826772 | M40: 7.295527559 | N40: 6.883251969 | O40: 6.48 | P40: 6.050527559 | Q40: =(Q39*Q42)+(Q4*Q42) -> 6.90625748 | R40: =(R39*R42)+(R4*R42) -> 5.483794488 | S40: 1.633138583 | T40: 2.434289764
B41: #8 | C41: 92.4 | D41: 36.37795276 | E41: 35 | F41: 88.9 | G41: 1.5 | H41: LEAD TAPE CENTIMETER | J41: =J40*($G$41*2.54) -> 32.02875 | K41: 30.69774 | L41: 29.28681 | M41: 27.79596 | N41: 26.22519 | O41: 24.6888 | P41: 23.05251 | Q41: 26.312841 | R41: 20.893257 | S41: 6.222258 | T41: 9.274644
B42: #9 | C42: 91.45 | D42: 36.00393701 | E42: 34.62598425 | F42: 87.95 | G42: GRAMS/SWP AFT OFFSET F.PLAY L. | J42: =LOOKUP(J61,$D62:$D82,J62:J82) -> 1.95 | K42: 1.99 | L42: 2.03 | M42: 2.07 | N42: 2.11 | O42: 2.16 | P42: 2.21 | Q42: 2.26 | R42: 2.31 | S42: 2.36 | T42: 2.41
B43: PW | C43: 90.82 | D43: 35.75590551 | E43: 34.00393701 | F43: =C43-($G$9/10)-($F$8/10) -> 86.37 | G43: EXPECTED STANDARD HEAD WEIGHT 7 GRAM SLOPE - ACTUAL HEAD WEIGHT (INPUT) - TARGET HEAD WEIGHT (CALC) - GRAMS NEEDED THIS BUILD (CALK)
B44: GW | C44: 90.19 | D44: 35.50787402 | E44: 33.75590551 | F44: =C44-($G$9/10)-($F$8/10) -> 85.74 | G44: EXPECTED STD HEAD WGT GRAMS | J44: =J45 -> 240 | K44: =J45+7 -> 247 | L44: =K44+7 -> 254 | M44: 261 | N44: 268 | O44: 275 | P44: 282 | Q44: 289 | R44: 296 | S44: 303 | T44: 310
B45: SW | C45: 89.56 | D45: 35.25984252 | E45: 33.50787402 | F45: =C45-($G$9/10)-($F$8/10) -> 85.11 | G45: ACTUAL HEAD WEIGHT THIS SET | J45: 240 | K45: 248 | L45: 252 | M45: 260 | N45: 264 | O45: 273 | P45: 281 | Q45: 286 | R45: 291 | S45: 290 | T45: 307
B46: LW | C46: 88.93 | D46: 35.01181102 | E46: 33.25984252 | F46: =C46-($G$9/10)-($F$8/10) -> 84.48 | G46: TARGET HEAD WEIGHT | J46: =J44+J40 -> 248.4064961 | K46: 255.0571496 | L46: 261.6868268 | M46: 268.2955276 | N46: 274.883252 | O46: 281.48 | P46: 288.0505276 | Q46: 295.9062575 | R46: 301.4837945 | S46: 304.6331386 | T46: 312.4342898
B47: STAND-ALONE SW CALK. | G47: GRAMS TO ADD THIS BUILD | J47: =J46-J45 -> 8.406496063 | K47: =K46-K45 -> 7.057149606 | L47: 9.686826772 | M47: 8.295527559 | N47: 10.88325197 | O47: 8.48 | P47: 7.050527559 | Q47: 9.90625748 | R47: 10.48379449 | S47: 14.63313858 | T47: 5.434289764
B48: TOTAL WEIGHT GRAMS | D48: 338.2 | G48: TOTAL WEIGHT GRAMS | J48: 421 | K48: 428 | L48: 433 | M48: 439 | N48: 445 | O48: 451 | P48: 457 | Q48: 466 | R48: 472 | S48: 478 | T48: 480
B49: BALANCE POINT CM | D49: 82.23 | G49: BALANCE POINT CM | J49: 73 | K49: =J49-0.5 -> 72.5 | L49: =K49-0.5 -> 72 | M49: 71.5 | N49: 71 | O49: 70.5 | P49: 70 | Q49: 69.5 | R49: 69 | S49: 69 | T49: 69
B50: SWING WEIGHT VALUE | D50: =SWC!C14 -> D3.2 | G50: SWING WEIGHT VALUE | J50: =SWC!C3 -> D3.1 | K50: =SWC!C4 -> D3.4 | L50: =SWC!C5 -> D3.2 | M50: =SWC!C6 -> D3.2 | N50: =SWC!C7 -> D3.1 | O50: =SWC!C8 -> D3.0 | P50: =SWC!C9 -> D2.9 | Q50: =SWC!C10 -> D3.5 | R50: =SWC!C11 -> D3.2 | S50: =SWC!C12 -> D4.8 | T50: =SWC!C13 -> D5.3
J51: #3 | K51: #4 | L51: #5 | M51: #6 | N51: #7 | O51: #8 | P51: #9 | Q51: PW | R51: GW | S51: SW | T51: LW
J52: =J39 -> 4.311023622 | K52: =K39 -> 4.048818898 | L52: 3.786614173 | M52: 3.524409449 | N52: 3.262204724 | O52: 3 | P52: 2.737795276 | Q52: 3.055866142 | R52: 2.373937008 | S52: 0.692007874 | T52: 1.01007874
G55: SW EQUALIZER | J55: =$D$33-2 -> 0 | K55: =$D$33-2 -> 0 | L55: 0 | M55: 0 | N55: 0 | O55: 0 | P55: 0 | Q55: 0 | R55: 0 | S55: 0 | T55: 0
G56: RELATIVE PROGR.SWP SLOPE-MOI | J56: =K56-E19 -> -2.487204724 | K56: =L56-E19 -> -1.98976378 | L56: =M56-E19 -> -1.492322835 | M56: =N56-E19 -> -0.9948818898 | N56: =-E19 -> -0.4974409449 | O56: 0 | P56: =IF($H$4=TRUE,C33,C33) -> 0.4937007874 | Q56: =IF($H$4=TRUE,P56+$E$33,P56+$C$33) -> 0.8235826772 | R56: =IF($H$4=TRUE,Q56+$E$33,Q56+$C$33) -> 1.153464567 | S56: =IF($H$4=TRUE,R56+$E$33,R56+$C$33) -> 1.483346457 | T56: =IF($H$4=TRUE,S56+$E$33,S56+$C$33) -> 1.813228346
G57: SW POINTS - LENGTH CHANGE | J57: =6*(J36/25.4) -> -7.511811024 | K57: -6.755905512 | L57: -6 | M57: -5.244094488 | N57: -4.488188976 | O57: -3.732283465 | P57: -2.976377953 | Q57: -2.964566929 | R57: -2.952755906 | S57: -2.940944882 | T57: -2.929133858
G59: PLAY LENGTH CHANGE | I59: =I36 -> 0 | J59: -31.8 | K59: -28.6 | L59: -25.4 | M59: -22.2 | N59: -19 | O59: -15.8 | P59: -12.6 | Q59: -12.55 | R59: -12.5 | S59: -12.45 | T59: -12.4
C60: offsett | D60: choise | F60: change | G60: OFFSET vs STANDARD | I60: =$C$61 -> 4 | J60: =$C$61 -> 4 | K60: 4 | L60: 4 | M60: 4 | N60: 4 | O60: 4 | P60: 4 | Q60: 4 | R60: 4 | S60: 4 | T60: 4
C61: =LOOKUP(D61,D62:D82,C62:C82) -> 4 | D61: 9 | E61: 5 | F61: =LOOKUP(D61,D62:D82,E62:E82) -> 0.5 | G61: CHOICE | I61: =$D$61 -> 9 | J61: =$D$61 -> 9 | K61: 9 | L61: 9 | M61: 9 | N61: 9 | O61: 9 | P61: 9 | Q61: 9 | R61: 9 | S61: 9 | T61: 9
C62: 12 | D62: 1 | E62: =F62 -> 1.5 | F62: 1.5 | G62: GRAMS SWP AT STD | I62: 1.84 | J62: 1.87 | K62: 1.91 | L62: =I74 -> 1.95 | M62: =J74 -> 1.99 | N62: 2.03 | O62: 2.07 | P62: 2.11 | Q62: 2.16 | R62: 2.21 | S62: 2.26 | T62: 2.31
C63: 11 | D63: =D62+1 -> 2 | E63: =F63 -> 1.375 | F63: =F62-1/8 -> 1.375 | G63: GRAMS SWP AT STD | I63: =(I66-I62)/3+I62 -> 1.85 | J63: =(J66-J62)/3+J62 -> 1.883333333 | K63: 1.923333333 | L63: 1.963333333 | M63: 2.003333333 | N63: 2.043333333 | O63: 2.083333333 | P63: 2.126666667 | Q63: 2.176666667 | R63: 2.226666667 | S63: 2.276666667 | T63: 2.326666667
C64: 10 | D64: =D63+1 -> 3 | E64: 1.25 | F64: 1.25 | G64: GRAMS SWP AT STD | I64: =(I66-I62)/3+I63 -> 1.86 | J64: =(J66-J62)/3+J63 -> 1.896666667 | K64: 1.936666667 | L64: 1.976666667 | M64: 2.016666667 | N64: 2.056666667 | O64: 2.096666667 | P64: 2.143333333 | Q64: 2.193333333 | R64: 2.243333333 | S64: 2.293333333 | T64: 2.343333333
C65: 9 | D65: 4 | E65: 1.125 | F65: 1.125 | G65: GRAMS SWP AT STD | I65: =(I66-I62)/3+I64 -> 1.87 | J65: =(J66-J62)/3+J64 -> 1.91 | K65: 1.95 | L65: 1.99 | M65: 2.03 | N65: 2.07 | O65: 2.11 | P65: 2.16 | Q65: 2.21 | R65: 2.26 | S65: 2.31 | T65: 2.36
C66: 8 | D66: 5 | E66: 1 | F66: 1 | G66: GRAMS SWP AT STD | I66: =J62 -> 1.87 | J66: =K62 -> 1.91 | K66: 1.95 | L66: 1.99 | M66: 2.03 | N66: 2.07 | O66: 2.11 | P66: 2.16 | Q66: 2.21 | R66: 2.26 | S66: 2.31 | T66: =S70 -> 2.36
C67: 7 | D67: 6 | E67: 0.875 | F67: 0.875 | G67: GRAMS SWP AT STD | I67: =(I70-I66)/3+I66 -> 1.883333333 | J67: 1.923333333 | K67: 1.963333333 | L67: 2.003333333 | M67: 2.043333333 | N67: 2.083333333 | O67: 2.126666667 | P67: 2.176666667 | Q67: 2.226666667 | R67: 2.276666667 | S67: 2.326666667 | T67: 2.376666667
C68: 6 | D68: 7 | E68: 0.75 | F68: 0.75 | G68: GRAMS SWP AT STD | I68: =(I70-I66)/3+I67 -> 1.896666667 | J68: 1.936666667 | K68: 1.976666667 | L68: 2.016666667 | M68: 2.056666667 | N68: 2.096666667 | O68: 2.143333333 | P68: 2.193333333 | Q68: 2.243333333 | R68: 2.293333333 | S68: 2.343333333 | T68: 2.393333333
C69: 5 | D69: 8 | E69: 0.625 | F69: 0.625 | G69: GRAMS SWP AT STD | I69: =(I70-I66)/3+I68 -> 1.91 | J69: 1.95 | K69: 1.99 | L69: 2.03 | M69: 2.07 | N69: 2.11 | O69: 2.16 | P69: 2.21 | Q69: 2.26 | R69: 2.31 | S69: 2.36 | T69: 2.41
C70: 4 | D70: 9 | E70: 0.5 | F70: 0.5 | G70: GRAMS SWP AT STD | I70: =J66 -> 1.91 | J70: =K66 -> 1.95 | K70: 1.99 | L70: 2.03 | M70: 2.07 | N70: 2.11 | O70: 2.16 | P70: 2.21 | Q70: 2.26 | R70: 2.31 | S70: =R74 -> 2.36 | T70: =S74 -> 2.41
C71: 3 | D71: 10 | E71: 0.375 | F71: 0.375 | G71: GRAMS SWP AT STD | I71: =(I74-I70)/3+I70 -> 1.923333333 | J71: 1.963333333 | K71: 2.003333333 | L71: 2.043333333 | M71: 2.083333333 | N71: 2.126666667 | O71: 2.176666667 | P71: 2.226666667 | Q71: 2.276666667 | R71: 2.326666667 | S71: 2.376666667 | T71: 2.426666667
C72: 2 | D72: 11 | E72: 0.25 | F72: 0.25 | G72: GRAMS SWP AT STD | I72: =(I74-I70)/3+I71 -> 1.936666667 | J72: 1.976666667 | K72: 2.016666667 | L72: 2.056666667 | M72: 2.096666667 | N72: 2.143333333 | O72: 2.193333333 | P72: 2.243333333 | Q72: 2.293333333 | R72: 2.343333333 | S72: 2.393333333 | T72: 2.443333333
C73: 1 | D73: 12 | E73: 0.125 | F73: 0.125 | G73: GRAMS SWP AT STD | I73: =(I74-I70)/3+I72 -> 1.95 | J73: 1.99 | K73: 2.03 | L73: 2.07 | M73: 2.11 | N73: 2.16 | O73: 2.21 | P73: 2.26 | Q73: 2.31 | R73: 2.36 | S73: 2.41 | T73: 2.46
C74: 0 | D74: 13 | E74: 0 | F74: 0 | G74: GRAMS SWP AT STD | I74: 1.95 | J74: 1.99 | K74: 2.03 | L74: 2.07 | M74: 2.11 | N74: 2.16 | O74: 2.21 | P74: 2.26 | Q74: 2.31 | R74: 2.36 | S74: 2.41 | T74: 2.46
C75: -1 | D75: 14 | E75: -0.125 | F75: -0.125 | G75: GRAMS SWP AT STD | I75: =(I78-I74)/3+I74 -> 1.923333333 | J75: 1.963333333 | K75: 2.003333333 | L75: 2.043333333 | M75: 2.083333333 | N75: 2.13 | O75: 2.176666667 | P75: 2.226666667 | Q75: 2.276666667 | R75: 2.326666667 | S75: 2.376666667 | T75: 2.426666667
C76: -2 | D76: 15 | E76: -0.25 | F76: -0.25 | G76: GRAMS SWP AT STD | I76: =(I78-I74)/3+I75 -> 1.896666667 | J76: 1.936666667 | K76: 1.976666667 | L76: 2.016666667 | M76: 2.056666667 | N76: 2.1 | O76: 2.143333333 | P76: 2.193333333 | Q76: 2.243333333 | R76: 2.293333333 | S76: 2.343333333 | T76: 2.393333333
C77: -3 | D77: 16 | E77: -0.375 | F77: -0.375 | G77: GRAMS SWP AT STD | I77: =(I78-I74)/3+I76 -> 1.87 | J77: 1.91 | K77: 1.95 | L77: 1.99 | M77: 2.03 | N77: 2.07 | O77: 2.11 | P77: 2.16 | Q77: 2.21 | R77: 2.26 | S77: 2.31 | T77: 2.36
C78: -4 | D78: 17 | E78: -0.5 | F78: -0.5 | G78: GRAMS SWP AT STD | I78: =J62 -> 1.87 | J78: =K62 -> 1.91 | K78: 1.95 | L78: 1.99 | M78: 2.03 | N78: 2.07 | O78: 2.11 | P78: 2.16 | Q78: 2.21 | R78: 2.26 | S78: 2.31 | T78: =R74 -> 2.36
C79: -5 | D79: 18 | E79: -0.625 | F79: -0.625 | G79: GRAMS SWP AT STD | I79: =(I82-I78)/3+I78 -> 1.923333333 | J79: 1.963333333 | K79: 2.003333333 | L79: 2.046666667 | M79: 2.09 | N79: 2.133333333 | O79: 2.176666667 | P79: 2.226666667 | Q79: 2.276666667 | R79: 2.326666667 | S79: 2.376666667 | T79: 2.426666667
C80: -6 | D80: 19 | E80: -0.75 | F80: =F79-1/8 -> -0.75 | G80: GRAMS SWP AT STD | I80: =(I82-I78)/3+I79 -> 1.976666667 | J80: 2.016666667 | K80: 2.056666667 | L80: 2.103333333 | M80: 2.15 | N80: 2.196666667 | O80: 2.243333333 | P80: 2.293333333 | Q80: 2.343333333 | R80: 2.393333333 | S80: 2.443333333 | T80: 2.493333333
C81: -7 | D81: 20 | E81: -0.875 | F81: =F80-1/8 -> -0.875 | G81: GRAMS SWP AT STD | I81: =(I82-I78)/3+I80 -> 2.03 | J81: 2.07 | K81: 2.11 | L81: 2.16 | M81: 2.21 | N81: 2.26 | O81: 2.31 | P81: 2.36 | Q81: 2.41 | R81: 2.46 | S81: 2.51 | T81: 2.56
C82: -8 | D82: 21 | E82: -1 | F82: =F81-1/8 -> -1 | G82: GRAMS SWP AT STD | I82: =M78 -> 2.03 | J82: =N78 -> 2.07 | K82: 2.11 | L82: 2.16 | M82: 2.21 | N82: 2.26 | O82: 2.31 | P82: 2.36 | Q82: =S74 -> 2.41 | R82: =T74 -> 2.46 | S82: 2.51 | T82: 2.56
B86: IMPERIAL | F86: METRIC
B87: =F87/25.4 -> 0.125984252 | C87: GRIP CAP THICKNESS | F87: =F8 -> 3.2
B88: =F88/25.4 -> 1.251968504 | C88: =G88/25.4 -> 1.625984252 | D88: BBGM - IRON - WEDGE | F88: =F9 -> 31.8 | G88: =G9 -> 41.3 | I88: NAME | J88: =J6 -> 0 | M88: HEADS | N88: =N6 -> 0 | P88: SHAFTS | Q88: =Q6 -> 0 | S88: SET UP | T88: =T6 -> 00:00:00
B89: =F89/25.4 -> 0.374015748 | C89: LENGTH BETWEEN IRONS | F89: =F10 -> 9.5
I90: #2 | J90: =J11 -> #3 | K90: =K11 -> #4 | L90: #5 | M90: #6 | N90: #7 | O90: #8 | P90: #9 | Q90: PW | R90: GW | S90: SW | T90: LW
B91: =F91/25.4 -> 0.2480314961 | C91: LENGTH BETWEEN WEDGES | F91: =F12 -> 6.3 | I91: =PRINT!I89 -> 0 | J91: =39+F122 -> 39 | K91: =J91-0.5 -> 38.5 | L91: =K91-0.5 -> 38 | M91: =L91-0.5 -> 37.5 | N91: =M91-0.5 -> 37 | O91: =N91-0.5 -> 36.5 | P91: =O91-0.5 -> 36 | Q91: =P91-0.25 -> 35.75 | R91: =Q91-0.25 -> 35.5 | S91: =R91-0.25 -> 35.25 | T91: =S91-0.25 -> 35
B92: IMPERIAL | C92: #8 IRON PLAY LENGTH | F92: METRIC | I92: THIS SET | J92: =J13 -> 38.2480315 | K92: =K13 -> 37.87401575 | L92: 37.5 | M92: 37.12598425 | N92: 36.7519685 | O92: 36.37795276 | P92: 36.00393701 | Q92: 35.75590551 | R92: 35.50787402 | S92: 35.25984252 | T92: 35.01181102
B93: =F93/2.54 -> 36.37795276 | C93: #8 IRON PLAY LENGTH | F93: =F14 -> 92.4 | I93: DIFF | J93: =J14 -> -1.251968504 | K93: =K14 -> -1.125984252 | L93: -1 | M93: -0.874015748 | N93: -0.7480314961 | O93: -0.6220472441 | P93: -0.4960629921 | Q93: -0.4940944882 | R93: -0.4921259843 | S93: -0.4901574803 | T93: -0.4881889764
B94: SW SLOPE IRONS | D94: STD.SW | E94: SW SLOPE WEDGE | N94: MANUEL PLAY LENGTH ADJ MILLIMETER | Q94: =Q1 -> 0 | R94: =R1 -> 0 | S94: 0 | T94: 0
B95: PR.INCH | C95: =C33 -> 0.4937007874 | D95: =D33 -> 2 | E95: =E33 -> 0.3298818898 | F95: PR.INC | N95: MANUEL OVER RIDE SW VALUE | Q95: =Q4 -> 0 | R95: =R4 -> 0 | S95: 0 | T95: 0
B96: CLUB | C96: METRIC P | D96: PLAY LENGTH | E96: NET.SHAFT | F96: NET.SHAFT | J96: #3 | K96: #4 | L96: #5 | M96: #6 | N96: #7 | O96: #8 | P96: #9 | Q96: PW | R96: GW | S96: SW | T96: LW
B97: #3 | C97: =C36 -> 97.15 | D97: =D36 -> 38.2480315 | E97: 36.87007874 | F97: 93.65 | G97: PLAY LENGTH DIFFERENCE MILLIMETER | J97: =J36 -> -31.8 | K97: =K36 -> -28.6 | L97: -25.4 | M97: -22.2 | N97: -19 | O97: -15.8 | P97: -12.6 | Q97: -12.55 | R97: -12.5 | S97: -12.45 | T97: -12.4
B98: #4 | C98: =C37 -> 96.2 | D98: 37.87401575 | E98: 36.49606299 | F98: 92.7 | G98: PLAY LENGTH DIFFERENCE IMPERIAL | J98: =J97/25.4 -> -1.251968504 | K98: =K97/25.4 -> -1.125984252 | L98: -1 | M98: -0.874015748 | N98: -0.7480314961 | O98: -0.6220472441 | P98: -0.4960629921 | Q98: -0.4940944882 | R98: -0.4921259843 | S98: -0.4901574803 | T98: -0.4881889764
B99: #5 | C99: =C38 -> 95.25 | D99: 37.5 | E99: 36.12204724 | F99: 91.75 | G99: SW TARGET VALUES | J99: =J38 -> -1.200787402 | K99: -0.7070866142 | L99: -0.2133858268 | M99: 0.2803149606 | N99: 0.774015748 | O99: 1.267716535 | P99: 1.761417323 | Q99: 2.091299213 | R99: 2.421181102 | S99: 2.751062992 | T99: 3.080944882
B100: #6 | C100: =C39 -> 94.3 | D100: 37.12598425 | E100: 35.7480315 | F100: 90.8 | G100: SWP CORRECTION NEEDED | J100: =J39 -> 4.311023622 | K100: 4.048818898 | L100: 3.786614173 | M100: 3.524409449 | N100: 3.262204724 | O100: 3 | P100: 2.737795276 | Q100: 3.055866142 | R100: 2.373937008 | S100: 0.692007874 | T100: 1.01007874
B101: #7 | C101: =C40 -> 93.35 | D101: 36.7519685 | E101: 35.37401575 | F101: 89.85 | G101: =#REF! ->  | H101: GRAMS NEEDED | J101: =J40 -> 8.406496063 | K101: 8.057149606 | L101: 7.686826772 | M101: 7.295527559 | N101: 6.883251969 | O101: 6.48 | P101: 6.050527559 | Q101: 6.90625748 | R101: 5.483794488 | S101: 1.633138583 | T101: 2.434289764
B102: #8 | C102: =C41 -> 92.4 | D102: 36.37795276 | E102: 35 | F102: 88.9 | G102: =G41 -> 1.5 | H102: LEAD TAPE CENTIMETER | J102: =J41 -> 32.02875 | K102: 30.69774 | L102: 29.28681 | M102: 27.79596 | N102: 26.22519 | O102: 24.6888 | P102: 23.05251 | Q102: 26.312841 | R102: 20.893257 | S102: 6.222258 | T102: 9.274644
B103: #9 | C103: =C42 -> 91.45 | D103: 36.00393701 | E103: 34.62598425 | F103: 87.95 | G103: GRAMS/SWP AFT OFFSET F.PLAY L. | J103: =J42 -> 1.95 | K103: 1.99 | L103: 2.03 | M103: 2.07 | N103: 2.11 | O103: 2.16 | P103: 2.21 | Q103: 2.26 | R103: 2.31 | S103: 2.36 | T103: 2.41
B104: PW | C104: =C43 -> 90.82 | D104: 35.75590551 | E104: 34.00393701 | F104: 86.37 | G104: STANDARD HEAD WEIGHT 7 GRAM SLOPE (1) - ACTUAL HEAD WEIGHT (2) - TARGET HEAD WEIGHT (3) - GRAMS NEEDED THIS BUILD (4)
B105: GW | C105: =C44 -> 90.19 | D105: 35.50787402 | E105: 33.75590551 | F105: 85.74 | G105: EXPECTED STD HEAD WGT GRAMS | J105: =J44 -> 240 | K105: =K44 -> 247 | L105: 254 | M105: 261 | N105: 268 | O105: 275 | P105: 282 | Q105: 289 | R105: 296 | S105: 303 | T105: 310
B106: SW | C106: =C45 -> 89.56 | D106: 35.25984252 | E106: 33.50787402 | F106: 85.11 | G106: ACTUAL HEAD WEIGHT THIS SET | J106: =J45 -> 240 | K106: 248 | L106: 252 | M106: 260 | N106: 264 | O106: 273 | P106: 281 | Q106: 286 | R106: 291 | S106: 290 | T106: 307
B107: LW | C107: =C46 -> 88.93 | D107: 35.01181102 | E107: 33.25984252 | F107: 84.48 | G107: TARGET HEAD WEIGHT | J107: =J46 -> 248.4064961 | K107: 255.0571496 | L107: 261.6868268 | M107: 268.2955276 | N107: 274.883252 | O107: 281.48 | P107: 288.0505276 | Q107: 295.9062575 | R107: 301.4837945 | S107: 304.6331386 | T107: 312.4342898
G108: GRAMS TO ADD THIS BUILD | J108: =J47 -> 8.406496063 | K108: 7.057149606 | L108: 9.686826772 | M108: 8.295527559 | N108: 10.88325197 | O108: 8.48 | P108: 7.050527559 | Q108: 9.90625748 | R108: 10.48379449 | S108: 14.63313858 | T108: 5.434289764
G109: TOTAL WEIGHT GRAMS | J109: =J48 -> 421 | K109: 428 | L109: 433 | M109: 439 | N109: 445 | O109: 451 | P109: 457 | Q109: 466 | R109: 472 | S109: 478 | T109: 480
G110: BALANCE POINT CM | J110: =J49 -> 73 | K110: 72.5 | L110: 72 | M110: 71.5 | N110: 71 | O110: 70.5 | P110: 70 | Q110: 69.5 | R110: 69 | S110: 69 | T110: 69
G111: SWING WEIGHT VALUE | J111: =J50 -> D3.1 | K111: D3.4 | L111: D3.2 | M111: D3.2 | N111: D3.1 | O111: D3.0 | P111: D2.9 | Q111: D3.5 | R111: D3.2 | S111: D4.8 | T111: D5.3
J112: #3 | K112: #4 | L112: #5 | M112: #6 | N112: #7 | O112: #8 | P112: #9 | Q112: PW | R112: GW | S112: SW | T112: LW

Sheet PRINT (hidden)
G1: 5 | I1: 1
C3: 1/8" | D3: 1/16" | E3: 1/32" | F3: 1,00" | I3: NAME | J3: HOWARD JONES | M3: HEADS | N3: CALLAWAY DIABLO F. | P3: SHAFTS | Q3: SS FCM GRAPHITE | S3: SET UP | T3: 6-PW | AK3: 0.5 | AL3: 25.4
C5: GRIP CAP THICK | F5: ='MOI DRY FIT METRIC'!F8:G8 -> 3.2 | I5: PLAY L. | J5: #3 | K5: #4 | L5: #5 | M5: #6 | N5: #7 | O5: #8 | P5: #9 | Q5: PW | R5: GW | S5: SW | T5: LW | AQ5: 25
C6: MILLIMETER BETW.CLUBS | F6: ='MOI DRY FIT METRIC'!F11:G11 -> 0 | I6: ='MOI DRY FIT METRIC'!F61 -> 0.5 | J6: ='MOI DRY FIT METRIC'!J12 -> 39.5 | K6: ='MOI DRY FIT METRIC'!K12 -> 39 | L6: ='MOI DRY FIT METRIC'!L12 -> 38.5 | M6: ='MOI DRY FIT METRIC'!M12 -> 38 | N6: ='MOI DRY FIT METRIC'!N12 -> 37.5 | O6: ='MOI DRY FIT METRIC'!O12 -> 37 | P6: ='MOI DRY FIT METRIC'!P12 -> 36.5 | Q6: ='MOI DRY FIT METRIC'!Q12 -> 36.25 | R6: ='MOI DRY FIT METRIC'!R12 -> 36 | S6: ='MOI DRY FIT METRIC'!S12 -> 35.75 | T6: ='MOI DRY FIT METRIC'!T12 -> 35.5
I7: SUGGEST | J7: ='MOI DRY FIT METRIC'!J13 -> 38.2480315 | K7: ='MOI DRY FIT METRIC'!K13 -> 37.87401575 | L7: ='MOI DRY FIT METRIC'!L13 -> 37.5 | M7: ='MOI DRY FIT METRIC'!M13 -> 37.12598425 | N7: ='MOI DRY FIT METRIC'!N13 -> 36.7519685 | O7: ='MOI DRY FIT METRIC'!O13 -> 36.37795276 | P7: ='MOI DRY FIT METRIC'!P13 -> 36.00393701 | Q7: ='MOI DRY FIT METRIC'!Q13 -> 35.75590551 | R7: ='MOI DRY FIT METRIC'!R13 -> 35.50787402 | S7: ='MOI DRY FIT METRIC'!S13 -> 35.25984252 | T7: ='MOI DRY FIT METRIC'!T13 -> 35.01181102
C8: LENGTH BETW WEDGES | F8: ='MOI DRY FIT METRIC'!F12:G12 -> 6.3 | I8: DIFF | J8: ='MOI DRY FIT METRIC'!J14 -> -1.251968504 | K8: ='MOI DRY FIT METRIC'!K14 -> -1.125984252 | L8: ='MOI DRY FIT METRIC'!L14 -> -1 | M8: ='MOI DRY FIT METRIC'!M14 -> -0.874015748 | N8: ='MOI DRY FIT METRIC'!N14 -> -0.7480314961 | O8: ='MOI DRY FIT METRIC'!O14 -> -0.6220472441 | P8: ='MOI DRY FIT METRIC'!P14 -> -0.4960629921 | Q8: ='MOI DRY FIT METRIC'!Q14 -> -0.4940944882 | R8: ='MOI DRY FIT METRIC'!R14 -> -0.4921259843 | S8: ='MOI DRY FIT METRIC'!S14 -> -0.4901574803 | T8: ='MOI DRY FIT METRIC'!T14 -> -0.4881889764
J9: =J8*25.4 -> -31.8 | K9: -28.6 | L9: -25.4 | M9: -22.2 | N9: -19 | O9: -15.8 | P9: -12.6 | Q9: -12.55 | R9: -12.5 | S9: -12.45 | T9: -12.4
C10: BBGM | F10: ='MOI DRY FIT METRIC'!F9 -> 31.8 | G10: ='MOI DRY FIT METRIC'!G9 -> 41.3
C11: #3 IRON PLAY LENGTH | F11: ='MOI DRY FIT METRIC'!F14:G14 -> 92.4
C12: MOI-P TO ADD-GREEN CLUB | F12: 9
C13: . =NEEDED WEIGTH IN GRAMS | F13: =F12/R13 -> 0.3794817682 | I13: Grams | J13: 1 | K13: 0.1 | L13: LIGHTEST TIP W.-TIP W PROG. | O13: MOI points pr gram at this lenght | R13: =((AH19*AH19)*1)/1000 -> 23.7165544 | S13: Gr.MOI-P | T13: =R13/100 -> 0.237165544
B16: SW PROGRESSION BETW.CLUBS | E16: =(1.33/25.4)*F6 -> 0 | F16: =(1.33/25.4)*F8 -> 0.3298818898 | G16: SW PROG. WEDGES | J16: Grams | K16: Grams | L16: Grams | M16: Grams | N16: Grams | O16: Grams | P16: Grams | Q16: Grams | R16: Grams | S16: Grams | T16: Grams
J17: =J13 -> 1 | K17: =J17+K13 -> 1.1 | L17: =K17+K13 -> 1.2 | M17: =L17+K13 -> 1.3 | N17: =M17+K13 -> 1.4 | O17: =N17+K13 -> 1.5 | P17: =O17+K13 -> 1.6 | Q17: =P17+K13 -> 1.7 | R17: =Q17+K13 -> 1.8 | S17: =R17+K13 -> 1.9 | T17: =S17+K13 -> 2
B18: CLUB SW+ | C18: METRIC | D18: Play lenght | E18: Net shaft | J18: MOI Points | K18: MOI Points | L18: MOI Points | M18: MOI Points | N18: MOI Points | O18: MOI Points | P18: MOI Points | Q18: MOI Points | R18: MOI Points | S18: MOI Points | T18: MOI Points | U18: Butt to tip | AH18: Butt-tip Cm
B19: IN WORK | C19: =F11*2.54 -> 234.696 | D19: =C19/2.54 -> 92.4 | E19: =D19-($F$5/25.4)-$F$10 -> 60.47401575 | J19: =($AH19*$AH19*(J$17/1000)) -> 23.7165544 | K19: 26.08820984 | L19: 28.45986528 | M19: 30.83152072 | N19: 33.20317616 | O19: 35.5748316 | P19: 37.94648705 | Q19: 40.31814249 | R19: 42.68979793 | S19: 45.06145337 | T19: 47.43310881 | U19: =E19+($F$5/25.4)*2.54 -> 60.79401575 | X19: gram | Y19: mm | Z19: pr mm | AA19: Just MM | AB19: BT Just | AE19: Matt | AH19: =(U19*2.54)-DataBase!$M$5 -> 154.0018
B20: =E16 -> 0 | C20: =C19-($F$6/10) -> 234.696 | D20: =C20/2.54 -> 92.4 | E20: 60.47401575 | J20: 23.56501308 | K20: 25.92151439 | L20: 28.2780157 | M20: 30.63451701 | N20: 32.99101831 | O20: 35.34751962 | P20: 37.70402093 | Q20: 40.06052224 | R20: 42.41702355 | S20: 44.77352485 | T20: 47.13002616 | U20: =E20+($F$5/25.4) -> 60.6 | W20: 10 | X20: 9.8 | Y20: 25.8 | Z20: =Y20/X20 -> 2.632653061 | AA20: =(Y20/X20)*W20 -> 26.32653061 | AB20: =AA20/2 -> 13.16326531 | AE20: =AA20 -> 26.32653061 | AH20: =(U20*2.54)-DataBase!$M$5 -> 153.509
B21: =B20+B20 -> 0 | C21: 234.696 | D21: =C21/2.54 -> 92.4 | E21: 60.47401575 | J21: 23.56501308 | K21: 25.92151439 | L21: 28.2780157 | M21: 30.63451701 | N21: 32.99101831 | O21: 35.34751962 | P21: 37.70402093 | Q21: 40.06052224 | R21: 42.41702355 | S21: 44.77352485 | T21: 47.13002616 | U21: 60.6 | W21: 9 | X21: 8.8 | Y21: 23.1 | Z21: =Y21/X21 -> 2.625 | AA21: =(Y21/X21)*W21 -> 23.625 | AB21: =AA21/2 -> 11.8125 | AE21: =AA20-2.4 -> 23.92653061 | AH21: =(U21*2.54)-DataBase!$M$5 -> 153.509
B22: =B21+B20 -> 0 | C22: 234.696 | D22: 92.4 | E22: 60.47401575 | J22: 23.56501308 | K22: 25.92151439 | L22: 28.2780157 | M22: 30.63451701 | N22: 32.99101831 | O22: 35.34751962 | P22: 37.70402093 | Q22: 40.06052224 | R22: 42.41702355 | S22: 44.77352485 | T22: 47.13002616 | U22: 60.6 | W22: 8 | X22: 7.8 | Y22: 20.6 | Z22: 2.641025641 | AA22: 21.12820513 | AB22: 10.56410256 | AE22: =AA21-2.4 -> 21.225 | AH22: =(U22*2.54)-DataBase!$M$5 -> 153.509
B23: =B22+B20 -> 0 | C23: 234.696 | D23: 92.4 | E23: 60.47401575 | J23: 23.56501308 | K23: 25.92151439 | L23: 28.2780157 | M23: 30.63451701 | N23: 32.99101831 | O23: 35.34751962 | P23: 37.70402093 | Q23: 40.06052224 | R23: 42.41702355 | S23: 44.77352485 | T23: 47.13002616 | U23: 60.6 | W23: 7 | X23: 6.8 | Y23: 18 | Z23: 2.647058824 | AA23: 18.52941176 | AB23: 9.264705882 | AE23: 18.72820513 | AH23: =(U23*2.54)-DataBase!$M$5 -> 153.509
B24: =B23+B20 -> 0 | C24: 234.696 | D24: 92.4 | E24: 60.47401575 | J24: 23.56501308 | K24: 25.92151439 | L24: 28.2780157 | M24: 30.63451701 | N24: 32.99101831 | O24: 35.34751962 | P24: 37.70402093 | Q24: 40.06052224 | R24: 42.41702355 | S24: 44.77352485 | T24: 47.13002616 | U24: 60.6 | W24: 6 | X24: 5.8 | Y24: 15.4 | Z24: 2.655172414 | AA24: 15.93103448 | AB24: 7.965517241 | AE24: 16.12941176 | AH24: =(U24*2.54)-DataBase!$M$5 -> 153.509
B25: =B24+B20 -> 0 | C25: 234.696 | D25: 92.4 | E25: 60.47401575 | J25: 23.56501308 | K25: 25.92151439 | L25: 28.2780157 | M25: 30.63451701 | N25: 32.99101831 | O25: 35.34751962 | P25: 37.70402093 | Q25: 40.06052224 | R25: 42.41702355 | S25: 44.77352485 | T25: 47.13002616 | U25: 60.6 | W25: 5 | X25: 4.8 | Y25: 12.8 | Z25: 2.666666667 | AA25: 13.33333333 | AB25: 6.666666667 | AE25: 13.53103448 | AH25: =(U25*2.54)-DataBase!$M$5 -> 153.509
B26: ="#"&"PW" -> #PW | C26: =C25-($F$8/10) -> 234.066 | D26: 92.1519685 | E26: 60.22598425 | J26: 23.37198864 | K26: 25.70918751 | L26: 28.04638637 | M26: 30.38358523 | N26: 32.7207841 | O26: 35.05798296 | P26: 37.39518183 | Q26: 39.73238069 | R26: 42.06957955 | S26: 44.40677842 | T26: 46.74397728 | U26: 60.3519685 | W26: 4 | X26: 3.8 | Y26: 10.2 | Z26: 2.684210526 | AA26: 10.73684211 | AB26: 5.368421053 | AE26: 10.93333333 | AH26: =(U26*2.54)-DataBase!$M$5 -> 152.879
B27: #GW | C27: =C26-($F$8/10) -> 233.436 | D27: 91.90393701 | E27: 59.97795276 | J27: 23.179758 | K27: 25.4977338 | L27: 27.8157096 | M27: 30.1336854 | N27: 32.4516612 | O27: 34.769637 | P27: 37.0876128 | Q27: 39.4055886 | R27: 41.7235644 | S27: 44.0415402 | T27: 46.359516 | U27: 60.10393701 | W27: 3 | X27: 2.8 | Y27: 7.6 | Z27: 2.714285714 | AA27: 8.142857143 | AB27: 4.071428571 | AE27: 8.336842105 | AH27: =(U27*2.54)-DataBase!$M$5 -> 152.249
B28: #SW | C28: =C27-($F$8/10) -> 232.806 | D28: 91.65590551 | E28: 59.72992126 | J28: 22.98832116 | K28: 25.28715328 | L28: 27.58598539 | M28: 29.88481751 | N28: 32.18364963 | O28: 34.48248174 | P28: 36.78131386 | Q28: 39.08014597 | R28: 41.37897809 | S28: 43.67781021 | T28: 45.97664232 | U28: 59.85590551 | W28: 2 | X28: 2.1 | Y28: 6.7 | Z28: 3.19047619 | AA28: 6.380952381 | AB28: 3.19047619 | AE28: 5.742857143 | AH28: =(U28*2.54)-DataBase!$M$5 -> 151.619
B29: #LW | C29: =C28-($F$8/10) -> 232.176 | D29: 91.40787402 | E29: 59.48188976 | J29: 22.79767812 | K29: 25.07744593 | L29: 27.35721375 | M29: 29.63698156 | N29: 31.91674937 | O29: 34.19651718 | P29: 36.47628499 | Q29: 38.75605281 | R29: 41.03582062 | S29: 43.31558843 | T29: 45.59535624 | U29: 59.60787402 | W29: 1 | X29: 1.1 | Y29: 3 | Z29: 2.727272727 | AA29: 2.727272727 | AB29: 1.363636364 | AE29: 3.980952381 | AH29: =(U29*2.54)-DataBase!$M$5 -> 150.989
B30: CLUB | C30: MET.PL | D30: PLAY. L | E30: NET.SFT | F30: NET.SFT
B31: #3 | C31: ='MOI DRY FIT METRIC'!C36 -> 97.15 | D31: ='MOI DRY FIT METRIC'!D36 -> 38.2480315 | E31: ='MOI DRY FIT METRIC'!E36 -> 36.87007874 | F31: ='MOI DRY FIT METRIC'!F36 -> 93.65
B32: #4 | C32: ='MOI DRY FIT METRIC'!C37 -> 96.2 | D32: ='MOI DRY FIT METRIC'!D37 -> 37.87401575 | E32: ='MOI DRY FIT METRIC'!E37 -> 36.49606299 | F32: ='MOI DRY FIT METRIC'!F37 -> 92.7
B33: #5 | C33: ='MOI DRY FIT METRIC'!C38 -> 95.25 | D33: ='MOI DRY FIT METRIC'!D38 -> 37.5 | E33: ='MOI DRY FIT METRIC'!E38 -> 36.12204724 | F33: ='MOI DRY FIT METRIC'!#REF! -> 
B34: #6 | C34: ='MOI DRY FIT METRIC'!C39 -> 94.3 | D34: ='MOI DRY FIT METRIC'!D39 -> 37.12598425 | E34: ='MOI DRY FIT METRIC'!E39 -> 35.7480315 | F34: ='MOI DRY FIT METRIC'!F39 -> 90.8
B35: #7 | C35: ='MOI DRY FIT METRIC'!C40 -> 93.35 | D35: ='MOI DRY FIT METRIC'!D40 -> 36.7519685 | E35: ='MOI DRY FIT METRIC'!E40 -> 35.37401575 | F35: ='MOI DRY FIT METRIC'!F40 -> 89.85
B36: #8 | C36: ='MOI DRY FIT METRIC'!C41 -> 92.4 | D36: ='MOI DRY FIT METRIC'!D41 -> 36.37795276 | E36: ='MOI DRY FIT METRIC'!E41 -> 35 | F36: ='MOI DRY FIT METRIC'!F41 -> 88.9
B37: #9 | C37: ='MOI DRY FIT METRIC'!C42 -> 91.45 | D37: ='MOI DRY FIT METRIC'!D42 -> 36.00393701 | E37: ='MOI DRY FIT METRIC'!E42 -> 34.62598425 | F37: ='MOI DRY FIT METRIC'!F42 -> 87.95
B38: PW | C38: ='MOI DRY FIT METRIC'!C43 -> 90.82 | D38: ='MOI DRY FIT METRIC'!D43 -> 35.75590551 | E38: ='MOI DRY FIT METRIC'!E43 -> 34.00393701 | F38: ='MOI DRY FIT METRIC'!F43 -> 86.37
B39: GW | C39: ='MOI DRY FIT METRIC'!C44 -> 90.19 | D39: ='MOI DRY FIT METRIC'!D44 -> 35.50787402 | E39: ='MOI DRY FIT METRIC'!E44 -> 33.75590551 | F39: ='MOI DRY FIT METRIC'!F44 -> 85.74
B40: SW | C40: ='MOI DRY FIT METRIC'!C45 -> 89.56 | D40: ='MOI DRY FIT METRIC'!D45 -> 35.25984252 | E40: ='MOI DRY FIT METRIC'!E45 -> 33.50787402 | F40: ='MOI DRY FIT METRIC'!F45 -> 85.11
B41: LW | C41: ='MOI DRY FIT METRIC'!C46 -> 88.93 | D41: ='MOI DRY FIT METRIC'!D46 -> 35.01181102 | E41: ='MOI DRY FIT METRIC'!E46 -> 33.25984252 | F41: ='MOI DRY FIT METRIC'!F46 -> 84.48
J44: #3 | K44: #4 | L44: #5 | M44: #6 | N44: #7 | O44: #8 | P44: #9 | Q44: PW | R44: GW | S44: SW | T44: LW
I45: CPM | J45: =-6*(J9/25.4) -> 7.511811024 | K45: 6.755905512 | L45: 6 | M45: 5.244094488 | N45: 4.488188976 | O45: 3.732283465 | P45: 2.976377953 | Q45: 2.964566929 | R45: 2.952755906 | S45: 2.940944882 | T45: 2.929133858
G47: PLAY LENGTH CHANGE | I47: =I31 -> 0 | J47: =J9 -> -31.8 | K47: -28.6 | L47: -25.4 | M47: -22.2 | N47: -19 | O47: -15.8 | P47: -12.6 | Q47: -12.55 | R47: -12.5 | S47: -12.45 | T47: -12.4
C48: offsett | D48: choise | F48: change | G48: OFFSET vs STANDARD | I48: =$C$49 -> 0 | J48: =$C$49 -> 0 | K48: 0 | L48: 0 | M48: 0 | N48: 0 | O48: 0 | P48: 0 | Q48: 0 | R48: 0 | S48: 0 | T48: 0
C49: =LOOKUP(D49,D50:D70,C50:C70) -> 0 | D49: 13 | F49: =LOOKUP(D49,D50:D70,E50:E70) -> 0 | G49: CHOICE | I49: =$D$49 -> 13 | J49: =$D$49 -> 13 | K49: 13 | L49: 13 | M49: 13 | N49: 13 | O49: 13 | P49: 13 | Q49: 13 | R49: 13 | S49: 13 | T49: 13
C50: 12 | D50: 1 | E50: =F50 -> 1.5 | F50: 1.5 | G50: GRAMS SWP AT STD | I50: 1.84 | J50: 1.87 | K50: 1.91 | L50: =I62 -> 1.95 | M50: =J62 -> 1.99 | N50: 2.03 | O50: 2.07 | P50: 2.11 | Q50: 2.16 | R50: 2.21 | S50: 2.26 | T50: 2.31
C51: 11 | D51: =D50+1 -> 2 | E51: =F51 -> 1.375 | F51: =F50-1/8 -> 1.375 | G51: GRAMS SWP AT STD | I51: =(I54-I50)/3+I50 -> 1.85 | J51: =(J54-J50)/3+J50 -> 1.883333333 | K51: 1.923333333 | L51: 1.963333333 | M51: 2.003333333 | N51: 2.043333333 | O51: 2.083333333 | P51: 2.126666667 | Q51: 2.176666667 | R51: 2.226666667 | S51: 2.276666667 | T51: 2.326666667
C52: 10 | D52: =D51+1 -> 3 | E52: 1.25 | F52: 1.25 | G52: GRAMS SWP AT STD | I52: =(I54-I50)/3+I51 -> 1.86 | J52: =(J54-J50)/3+J51 -> 1.896666667 | K52: 1.936666667 | L52: 1.976666667 | M52: 2.016666667 | N52: 2.056666667 | O52: 2.096666667 | P52: 2.143333333 | Q52: 2.193333333 | R52: 2.243333333 | S52: 2.293333333 | T52: 2.343333333
C53: 9 | D53: 4 | E53: 1.125 | F53: 1.125 | G53: GRAMS SWP AT STD | I53: =(I54-I50)/3+I52 -> 1.87 | J53: =(J54-J50)/3+J52 -> 1.91 | K53: 1.95 | L53: 1.99 | M53: 2.03 | N53: 2.07 | O53: 2.11 | P53: 2.16 | Q53: 2.21 | R53: 2.26 | S53: 2.31 | T53: 2.36
C54: 8 | D54: 5 | E54: 1 | F54: 1 | G54: GRAMS SWP AT STD | I54: =J50 -> 1.87 | J54: =K50 -> 1.91 | K54: 1.95 | L54: 1.99 | M54: 2.03 | N54: 2.07 | O54: 2.11 | P54: 2.16 | Q54: 2.21 | R54: 2.26 | S54: 2.31 | T54: =S58 -> 2.36
C55: 7 | D55: 6 | E55: 0.875 | F55: 0.875 | G55: GRAMS SWP AT STD | I55: =(I58-I54)/3+I54 -> 1.883333333 | J55: =(J58-J54)/3+J54 -> 1.923333333 | K55: 1.963333333 | L55: 2.003333333 | M55: 2.043333333 | N55: 2.083333333 | O55: 2.126666667 | P55: 2.176666667 | Q55: 2.226666667 | R55: 2.276666667 | S55: 2.326666667 | T55: 2.376666667
C56: 6 | D56: 7 | E56: 0.75 | F56: 0.75 | G56: GRAMS SWP AT STD | I56: =(I58-I54)/3+I55 -> 1.896666667 | J56: =(J58-J54)/3+J55 -> 1.936666667 | K56: 1.976666667 | L56: 2.016666667 | M56: 2.056666667 | N56: 2.096666667 | O56: 2.143333333 | P56: 2.193333333 | Q56: 2.243333333 | R56: 2.293333333 | S56: 2.343333333 | T56: 2.393333333
C57: 5 | D57: 8 | E57: 0.625 | F57: 0.625 | G57: GRAMS SWP AT STD | I57: =(I58-I54)/3+I56 -> 1.91 | J57: =(J58-J54)/3+J56 -> 1.95 | K57: 1.99 | L57: 2.03 | M57: 2.07 | N57: 2.11 | O57: 2.16 | P57: 2.21 | Q57: 2.26 | R57: 2.31 | S57: 2.36 | T57: 2.41
C58: 4 | D58: 9 | E58: 0.5 | F58: 0.5 | G58: GRAMS SWP AT STD | I58: =J54 -> 1.91 | J58: =K54 -> 1.95 | K58: 1.99 | L58: 2.03 | M58: 2.07 | N58: 2.11 | O58: 2.16 | P58: 2.21 | Q58: 2.26 | R58: 2.31 | S58: =R62 -> 2.36 | T58: =S62 -> 2.41
C59: 3 | D59: 10 | E59: 0.375 | F59: 0.375 | G59: GRAMS SWP AT STD | I59: =(I62-I58)/3+I58 -> 1.923333333 | J59: =(J62-J58)/3+J58 -> 1.963333333 | K59: 2.003333333 | L59: 2.043333333 | M59: 2.083333333 | N59: 2.126666667 | O59: 2.176666667 | P59: 2.226666667 | Q59: 2.276666667 | R59: 2.326666667 | S59: 2.376666667 | T59: 2.426666667
C60: 2 | D60: 11 | E60: 0.25 | F60: 0.25 | G60: GRAMS SWP AT STD | I60: =(I62-I58)/3+I59 -> 1.936666667 | J60: =(J62-J58)/3+J59 -> 1.976666667 | K60: 2.016666667 | L60: 2.056666667 | M60: 2.096666667 | N60: 2.143333333 | O60: 2.193333333 | P60: 2.243333333 | Q60: 2.293333333 | R60: 2.343333333 | S60: 2.393333333 | T60: 2.443333333
C61: 1 | D61: 12 | E61: 0.125 | F61: 0.125 | G61: GRAMS SWP AT STD | I61: =(I62-I58)/3+I60 -> 1.95 | J61: =(J62-J58)/3+J60 -> 1.99 | K61: 2.03 | L61: 2.07 | M61: 2.11 | N61: 2.16 | O61: 2.21 | P61: 2.26 | Q61: 2.31 | R61: 2.36 | S61: 2.41 | T61: 2.46
C62: 0 | D62: 13 | E62: 0 | F62: 0 | G62: GRAMS SWP AT STD | I62: 1.95 | J62: 1.99 | K62: 2.03 | L62: 2.07 | M62: 2.11 | N62: 2.16 | O62: 2.21 | P62: 2.26 | Q62: 2.31 | R62: 2.36 | S62: 2.41 | T62: 2.46
C63: -1 | D63: 14 | E63: -0.125 | F63: -0.125 | G63: GRAMS SWP AT STD | I63: =(I66-I62)/3+I62 -> 1.923333333 | J63: =(J66-J62)/3+J62 -> 1.963333333 | K63: 2.003333333 | L63: 2.043333333 | M63: 2.083333333 | N63: 2.13 | O63: 2.176666667 | P63: 2.226666667 | Q63: 2.276666667 | R63: 2.326666667 | S63: 2.376666667 | T63: 2.426666667
C64: -2 | D64: 15 | E64: -0.25 | F64: -0.25 | G64: GRAMS SWP AT STD | I64: =(I66-I62)/3+I63 -> 1.896666667 | J64: =(J66-J62)/3+J63 -> 1.936666667 | K64: 1.976666667 | L64: 2.016666667 | M64: 2.056666667 | N64: 2.1 | O64: 2.143333333 | P64: 2.193333333 | Q64: 2.243333333 | R64: 2.293333333 | S64: 2.343333333 | T64: 2.393333333
C65: -3 | D65: 16 | E65: -0.375 | F65: -0.375 | G65: GRAMS SWP AT STD | I65: =(I66-I62)/3+I64 -> 1.87 | J65: =(J66-J62)/3+J64 -> 1.91 | K65: 1.95 | L65: 1.99 | M65: 2.03 | N65: 2.07 | O65: 2.11 | P65: 2.16 | Q65: 2.21 | R65: 2.26 | S65: 2.31 | T65: 2.36
C66: -4 | D66: 17 | E66: -0.5 | F66: -0.5 | G66: GRAMS SWP AT STD | I66: =J50 -> 1.87 | J66: =K50 -> 1.91 | K66: 1.95 | L66: 1.99 | M66: 2.03 | N66: 2.07 | O66: 2.11 | P66: 2.16 | Q66: 2.21 | R66: 2.26 | S66: 2.31 | T66: =R62 -> 2.36
C67: -5 | D67: 18 | E67: -0.625 | F67: -0.625 | G67: GRAMS SWP AT STD | I67: =(I70-I66)/3+I66 -> 1.923333333 | J67: =(J70-J66)/3+J66 -> 1.963333333 | K67: 2.003333333 | L67: 2.046666667 | M67: 2.09 | N67: 2.133333333 | O67: 2.176666667 | P67: 2.226666667 | Q67: 2.276666667 | R67: 2.326666667 | S67: 2.376666667 | T67: 2.426666667
C68: -6 | D68: 19 | E68: -0.75 | F68: -0.75 | G68: GRAMS SWP AT STD | I68: =(I70-I66)/3+I67 -> 1.976666667 | J68: =(J70-J66)/3+J67 -> 2.016666667 | K68: 2.056666667 | L68: 2.103333333 | M68: 2.15 | N68: 2.196666667 | O68: 2.243333333 | P68: 2.293333333 | Q68: 2.343333333 | R68: 2.393333333 | S68: 2.443333333 | T68: 2.493333333
C69: -7 | D69: 20 | E69: -0.875 | F69: -0.875 | G69: GRAMS SWP AT STD | I69: =(I70-I66)/3+I68 -> 2.03 | J69: =(J70-J66)/3+J68 -> 2.07 | K69: 2.11 | L69: 2.16 | M69: 2.21 | N69: 2.26 | O69: 2.31 | P69: 2.36 | Q69: 2.41 | R69: 2.46 | S69: 2.51 | T69: 2.56
C70: -8 | D70: 21 | E70: -1 | F70: -1 | G70: GRAMS SWP AT STD | I70: =M66 -> 2.03 | J70: =N66 -> 2.07 | K70: 2.11 | L70: 2.16 | M70: 2.21 | N70: 2.26 | O70: 2.31 | P70: 2.36 | Q70: =S62 -> 2.41 | R70: =T62 -> 2.46 | S70: 2.51 | T70: 2.56

Sheet SWC (hidden)
B2: # | C2: SW | D2: GRAM | E2: BALANCE POINT | F2: GRAM*(BP-14") | G2: SW INDEX
B3: #3 | C3: =VLOOKUP(G3,$I$3:$J$703,2) -> D3.1 | D3: ='MOI DRY FIT METRIC'!J48 -> 421 | E3: =('MOI DRY FIT METRIC'!J49/2.54) -> 28.74015748 | F3: =D3*(E3-14) -> 6205.606299 | G3: =(F3*0.03528 - 143.5) /1.75 -> 43.10502299 | I3: 10 | J3: A0.0
B4: #4 | C4: =VLOOKUP(G4,$I$3:$J$703,2) -> D3.4 | D4: ='MOI DRY FIT METRIC'!K$48 -> 428 | E4: =('MOI DRY FIT METRIC'!K49/2.54) -> 28.54330709 | F4: 6224.535433 | G4: 43.48663433 | I4: 10.1 | J4: A0.1
B5: #5 | C5: =VLOOKUP(G5,$I$3:$J$703,2) -> D3.2 | D5: ='MOI DRY FIT METRIC'!L$48 -> 433 | E5: =('MOI DRY FIT METRIC'!L49)/2.54 -> 28.34645669 | F5: 6212.015748 | G5: 43.23423748 | I5: 10.2 | J5: A0.2
B6: #6 | C6: D3.2 | D6: ='MOI DRY FIT METRIC'!M$48 -> 439 | E6: ='MOI DRY FIT METRIC'!M49/2.54 -> 28.1496063 | F6: 6211.677165 | G6: 43.22741165 | I6: 10.3 | J6: A0.3
B7: #7 | C7: D3.1 | D7: ='MOI DRY FIT METRIC'!N$48 -> 445 | E7: ='MOI DRY FIT METRIC'!N49/2.54 -> 27.95275591 | F7: 6208.976378 | G7: 43.17296378 | I7: 10.4 | J7: A0.4
B8: #8 | C8: D3.0 | D8: ='MOI DRY FIT METRIC'!O$48 -> 451 | E8: ='MOI DRY FIT METRIC'!O49/2.54 -> 27.75590551 | F8: 6203.913386 | G8: 43.07089386 | I8: 10.5 | J8: A0.5
B9: #9 | C9: D2.9 | D9: ='MOI DRY FIT METRIC'!P$48 -> 457 | E9: ='MOI DRY FIT METRIC'!P49/2.54 -> 27.55905512 | F9: 6196.488189 | G9: 42.92120189 | I9: 10.6 | J9: A0.6
B10: PW | C10: D3.5 | D10: ='MOI DRY FIT METRIC'!Q$48 -> 466 | E10: ='MOI DRY FIT METRIC'!Q49/2.54 -> 27.36220472 | F10: 6226.787402 | G10: 43.53203402 | I10: 10.7 | J10: A0.7
B11: GW | C11: D3.2 | D11: ='MOI DRY FIT METRIC'!R$48 -> 472 | E11: ='MOI DRY FIT METRIC'!R49/2.54 -> 27.16535433 | F11: 6214.047244 | G11: 43.27519244 | I11: 10.8 | J11: A0.8
B12: SW | C12: D4.8 | D12: ='MOI DRY FIT METRIC'!S$48 -> 478 | E12: ='MOI DRY FIT METRIC'!S49/2.54 -> 27.16535433 | F12: 6293.03937 | G12: 44.8676737 | I12: 10.9 | J12: A0.9
B13: LW | C13: D5.3 | D13: ='MOI DRY FIT METRIC'!T$48 -> 480 | E13: ='MOI DRY FIT METRIC'!T49/2.54 -> 27.16535433 | F13: =D13*(E13-14) -> 6319.370079 | G13: =(F13*0.03528 - 143.5) /1.75 -> 45.39850079 | I13: 11 | J13: A1.0
B14: x | C14: D3.2 | D14: ='MOI DRY FIT METRIC'!D48 -> 338.2 | E14: ='MOI DRY FIT METRIC'!D49/2.54 -> 32.37401575 | F14: =D14*(E14-14) -> 6214.092126 | G14: =(F14*0.03528 - 143.5) /1.75 -> 43.27609726 | I14: 11.1 | J14: A1.1
A15: T | B15: x | C15: =VLOOKUP(G15,$I$3:$J$703,2) ->  | D15: =#REF! ->  | E15: =#REF!/2.54 ->  | F15: =D15*(E15-14) ->  | G15: =(F15*0.03528 - 143.5) /1.75 ->  | I15: 11.2 | J15: A1.2
A16: T | B16: x | C16: =VLOOKUP(G16,$I$3:$J$703,2) ->  | D16: =#REF! ->  | E16: =#REF!/2.54 ->  | F16: =D16*(E16-14) ->  | G16: =(F16*0.03528 - 143.5) /1.75 ->  | I16: 11.3 | J16: A1.3
A17: T | B17: x | D17: =#REF! ->  | E17: =#REF!/2.54 ->  | I17: 11.4 | J17: A1.4
A18: T | B18: x | D18: =#REF! ->  | E18: =#REF!/2.54 ->  | I18: 11.5 | J18: A1.5
A19: T | B19: x | D19: =#REF! ->  | E19: =#REF!/2.54 ->  | I19: 11.6 | J19: A1.6
A20: T | B20: x | D20: =#REF! ->  | E20: =#REF!/2.54 ->  | I20: 11.7 | J20: A1.7
A21: T | B21: x | D21: =#REF! ->  | E21: =#REF!/2.54 ->  | I21: 11.8 | J21: A1.8
A22: T | B22: x | D22: =#REF! ->  | E22: =#REF!/2.54 ->  | I22: 11.9 | J22: A1.9
A23: T | B23: x | D23: =#REF! ->  | E23: =#REF!/2.54 ->  | I23: 12 | J23: A2.0
A24: T | B24: x | D24: =#REF! ->  | E24: =#REF!/2.54 ->  | I24: 12.1 | J24: A2.1
A25: T | B25: x | D25: =#REF! ->  | E25: =#REF!/2.54 ->  | I25: 12.2 | J25: A2.2
A26: T | B26: x | D26: =#REF! ->  | E26: =#REF!/2.54 ->  | I26: 12.3 | J26: A2.3
A27: T | B27: x | D27: =#REF! ->  | E27: =#REF!/2.54 ->  | I27: 12.4 | J27: A2.4
A28: T | B28: x | D28: =#REF! ->  | E28: =#REF!/2.54 ->  | I28: 12.5 | J28: A2.5
A29: T | B29: x | D29: =#REF! ->  | E29: =#REF!/2.54 ->  | I29: 12.6 | J29: A2.6
A30: T | B30: x | D30: =#REF! ->  | E30: =#REF!/2.54 ->  | I30: 12.7 | J30: A2.7
A31: T | B31: x | D31: =#REF! ->  | E31: =#REF!/2.54 ->  | I31: 12.8 | J31: A2.8
A32: T | B32: x | D32: =#REF! ->  | E32: =#REF!/2.54 ->  | I32: 12.9 | J32: A2.9
A33: T | B33: x | D33: =#REF! ->  | E33: =#REF!/2.54 ->  | I33: 13 | J33: A3.0
A34: T | B34: x | D34: =#REF! ->  | E34: =#REF!/2.54 ->  | I34: 13.1 | J34: A3.1
A35: T | B35: x | D35: =#REF! ->  | E35: =#REF!/2.54 ->  | I35: 13.2 | J35: A3.2
A36: T | B36: x | D36: =#REF! ->  | E36: =#REF!/2.54 ->  | I36: 13.3 | J36: A3.3
A37: T | B37: x | D37: =#REF! ->  | E37: =#REF!/2.54 ->  | I37: 13.4 | J37: A3.4
A38: T | B38: x | D38: =#REF! ->  | E38: =#REF!/2.54 ->  | I38: 13.5 | J38: A3.5
A39: T | B39: x | D39: =#REF! ->  | E39: =#REF!/2.54 ->  | I39: 13.6 | J39: A3.6
A40: T | B40: x | D40: =#REF! ->  | E40: =#REF!/2.54 ->  | I40: 13.7 | J40: A3.7
A41: T | B41: x | D41: =#REF! ->  | E41: =#REF!/2.54 ->  | I41: 13.8 | J41: A3.8
A42: T | B42: x | D42: =#REF! ->  | E42: =#REF!/2.54 ->  | I42: 13.9 | J42: A3.9
A43: T | B43: x | D43: =#REF! ->  | E43: =#REF!/2.54 ->  | I43: 14 | J43: A4.0
A44: T | B44: x | D44: =#REF! ->  | E44: =#REF!/2.54 ->  | I44: 14.1 | J44: A4.1
A45: T | B45: x | D45: =#REF! ->  | E45: =#REF!/2.54 ->  | I45: 14.2 | J45: A4.2
A46: T | B46: x | D46: =#REF! ->  | E46: =#REF!/2.54 ->  | I46: 14.3 | J46: A4.3
A47: T | B47: x | D47: =#REF! ->  | E47: =#REF!/2.54 ->  | I47: 14.4 | J47: A4.4
A48: T | B48: x | D48: =#REF! ->  | E48: =#REF!/2.54 ->  | I48: 14.5 | J48: A4.5
A49: T | B49: x | D49: =#REF! ->  | E49: =#REF!/2.54 ->  | I49: 14.6 | J49: A4.6
A50: T | B50: x | D50: =#REF! ->  | E50: =#REF!/2.54 ->  | I50: 14.7 | J50: A4.7
A51: T | B51: x | D51: =#REF! ->  | E51: =#REF!/2.54 ->  | I51: 14.8 | J51: A4.8
A52: T | B52: x | D52: =#REF! ->  | E52: =#REF!/2.54 ->  | I52: 14.9 | J52: A4.9
A53: T | B53: x | D53: =#REF! ->  | E53: =#REF!/2.54 ->  | I53: 15 | J53: A5.0
A54: T | B54: x | D54: =#REF! ->  | E54: =#REF!/2.54 ->  | I54: 15.1 | J54: A5.1
A55: T | B55: x | D55: =#REF! ->  | E55: =#REF!/2.54 ->  | I55: 15.2 | J55: A5.2
A56: T | B56: x | D56: =#REF! ->  | E56: =#REF!/2.54 ->  | I56: 15.3 | J56: A5.3
A57: T | B57: x | D57: =#REF! ->  | E57: =#REF!/2.54 ->  | I57: 15.4 | J57: A5.4
A58: T | B58: x | D58: =#REF! ->  | E58: =#REF!/2.54 ->  | I58: 15.5 | J58: A5.5
A59: T | B59: x | D59: =#REF! ->  | E59: =#REF!/2.54 ->  | I59: 15.6 | J59: A5.6
A60: T | B60: x | D60: =#REF! ->  | E60: =#REF!/2.54 ->  | I60: 15.7 | J60: A5.7
A61: T | B61: x | D61: =#REF! ->  | E61: =#REF!/2.54 ->  | I61: 15.8 | J61: A5.8
A62: T | B62: x | D62: =#REF! ->  | E62: =#REF!/2.54 ->  | I62: 15.9 | J62: A5.9
A63: T | B63: x | D63: =#REF! ->  | E63: =#REF!/2.54 ->  | I63: 16 | J63: A6.0
A64: T | B64: x | D64: =#REF! ->  | E64: =#REF!/2.54 ->  | I64: 16.1 | J64: A6.1
A65: T | B65: x | D65: =#REF! ->  | E65: =#REF!/2.54 ->  | I65: 16.2 | J65: A6.2
A66: T | B66: x | D66: =#REF! ->  | E66: =#REF!/2.54 ->  | I66: 16.3 | J66: A6.3
A67: T | B67: x | D67: =#REF! ->  | E67: =#REF!/2.54 ->  | I67: 16.4 | J67: A6.4
A68: T | B68: x | D68: =#REF! ->  | E68: =#REF!/2.54 ->  | I68: 16.5 | J68: A6.5
A69: T | B69: x | D69: =#REF! ->  | E69: =#REF!/2.54 ->  | I69: 16.6 | J69: A6.6
A70: T | B70: x | D70: =#REF! ->  | E70: =#REF!/2.54 ->  | I70: 16.7 | J70: A6.7
A71: T | B71: x | D71: =#REF! ->  | E71: =#REF!/2.54 ->  | I71: 16.8 | J71: A6.8
A72: T | B72: x | D72: =#REF! ->  | E72: =#REF!/2.54 ->  | I72: 16.9 | J72: A6.9
A73: T | B73: x | D73: =#REF! ->  | E73: =#REF!/2.54 ->  | I73: 17 | J73: A7.0
A74: T | B74: x | D74: =#REF! ->  | E74: =#REF!/2.54 ->  | I74: 17.1 | J74: A7.1
A75: T | B75: x | D75: =#REF! ->  | E75: =#REF!/2.54 ->  | I75: 17.2 | J75: A7.2
A76: T | B76: x | D76: =#REF! ->  | E76: =#REF!/2.54 ->  | I76: 17.3 | J76: A7.3
A77: T | B77: x | D77: =#REF! ->  | E77: =#REF!/2.54 ->  | I77: 17.4 | J77: A7.4
A78: T | B78: x | D78: =#REF! ->  | E78: =#REF!/2.54 ->  | I78: 17.5 | J78: A7.5
A79: T | B79: x | D79: =#REF! ->  | E79: =#REF!/2.54 ->  | I79: 17.6 | J79: A7.6
A80: T | B80: x | C80: =VLOOKUP(G80,$I$3:$J$703,2) ->  | D80: =#REF! ->  | E80: =#REF!/2.54 ->  | F80: =D80*(E80-14) ->  | G80: =(F80*0.03528 - 143.5) /1.75 ->  | I80: 17.7 | J80: A7.7
A81: T | B81: x | D81: =#REF! ->  | E81: =#REF!/2.54 ->  | I81: 17.8 | J81: A7.8
A82: T | B82: x | D82: =#REF! ->  | E82: =#REF!/2.54 ->  | I82: 17.9 | J82: A7.9
A83: T | B83: x | D83: =#REF! ->  | E83: =#REF!/2.54 ->  | I83: 18 | J83: A8.0
A84: T | B84: x | D84: =#REF! ->  | E84: =#REF!/2.54 ->  | I84: 18.1 | J84: A8.1
A85: T | B85: x | D85: =#REF! ->  | E85: =#REF!/2.54 ->  | I85: 18.2 | J85: A8.2
A86: T | B86: x | D86: =#REF! ->  | E86: =#REF!/2.54 ->  | I86: 18.3 | J86: A8.3
A87: T | B87: x | D87: =#REF! ->  | E87: =#REF!/2.54 ->  | I87: 18.4 | J87: A8.4
A88: T | B88: x | D88: =#REF! ->  | E88: =#REF!/2.54 ->  | I88: 18.5 | J88: A8.5
A89: T | B89: x | D89: =#REF! ->  | E89: =#REF!/2.54 ->  | I89: 18.6 | J89: A8.6
A90: T | B90: x | D90: =#REF! ->  | E90: =#REF!/2.54 ->  | I90: 18.7 | J90: A8.7
A91: T | B91: x | D91: =#REF! ->  | E91: =#REF!/2.54 ->  | I91: 18.8 | J91: A8.8
A92: T | B92: x | D92: =#REF! ->  | E92: =#REF!/2.54 ->  | I92: 18.9 | J92: A8.9
A93: T | B93: x | D93: =#REF! ->  | E93: =#REF!/2.54 ->  | I93: 19 | J93: A9.0
A94: T | B94: x | D94: =#REF! ->  | E94: =#REF!/2.54 ->  | I94: 19.1 | J94: A9.1
A95: T | B95: x | D95: =#REF! ->  | E95: =#REF!/2.54 ->  | I95: 19.2 | J95: A9.2
A96: T | B96: x | D96: =#REF! ->  | E96: =#REF!/2.54 ->  | I96: 19.3 | J96: A9.3
A97: T | B97: x | D97: =#REF! ->  | E97: =#REF!/2.54 ->  | I97: 19.4 | J97: A9.4
A98: T | B98: x | D98: =#REF! ->  | E98: =#REF!/2.54 ->  | I98: 19.5 | J98: A9.5
A99: T | B99: x | D99: =#REF! ->  | E99: =#REF!/2.54 ->  | I99: 19.6 | J99: A9.6
A100: T | B100: x | D100: =#REF! ->  | E100: =#REF!/2.54 ->  | I100: 19.7 | J100: A9.7
A101: T | B101: x | D101: =#REF! ->  | E101: =#REF!/2.54 ->  | I101: 19.8 | J101: A9.8
A102: T | B102: x | D102: =#REF! ->  | E102: =#REF!/2.54 ->  | I102: 19.9 | J102: A9.9
A103: T | B103: x | D103: =#REF! ->  | E103: =#REF!/2.54 ->  | I103: 20 | J103: B0.0
A104: T | B104: x | D104: =#REF! ->  | E104: =#REF!/2.54 ->  | I104: 20.1 | J104: B0.1
A105: T | B105: x | D105: =#REF! ->  | E105: =#REF!/2.54 ->  | I105: 20.2 | J105: B0.2
A106: T | B106: x | D106: =#REF! ->  | E106: =#REF!/2.54 ->  | I106: 20.3 | J106: B0.3
A107: T | B107: x | D107: =#REF! ->  | E107: =#REF!/2.54 ->  | I107: 20.4 | J107: B0.4
A108: T | B108: x | D108: =#REF! ->  | E108: =#REF!/2.54 ->  | I108: 20.5 | J108: B0.5
A109: T | B109: x | D109: =#REF! ->  | E109: =#REF!/2.54 ->  | I109: 20.6 | J109: B0.6
A110: T | B110: x | D110: =#REF! ->  | E110: =#REF!/2.54 ->  | I110: 20.7 | J110: B0.7
A111: T | B111: x | D111: =#REF! ->  | E111: =#REF!/2.54 ->  | I111: 20.8 | J111: B0.8
A112: T | B112: x | D112: =#REF! ->  | E112: =#REF!/2.54 ->  | I112: 20.9 | J112: B0.9
A113: T | B113: x | D113: =#REF! ->  | E113: =#REF!/2.54 ->  | I113: 21 | J113: B1.0
A114: T | B114: x | D114: =#REF! ->  | E114: =#REF!/2.54 ->  | I114: 21.1 | J114: B1.1
A115: T | B115: x | D115: =#REF! ->  | E115: =#REF!/2.54 ->  | I115: 21.2 | J115: B1.2
A116: T | B116: x | D116: =#REF! ->  | E116: =#REF!/2.54 ->  | I116: 21.3 | J116: B1.3
A117: T | B117: x | D117: =#REF! ->  | E117: =#REF!/2.54 ->  | I117: 21.4 | J117: B1.4
A118: T | B118: x | D118: =#REF! ->  | E118: =#REF!/2.54 ->  | I118: 21.5 | J118: B1.5
A119: T | B119: x | D119: =#REF! ->  | E119: =#REF!/2.54 ->  | I119: 21.6 | J119: B1.6
A120: T | B120: x | D120: =#REF! ->  | E120: =#REF!/2.54 ->  | I120: 21.7 | J120: B1.7
A121: T | B121: x | D121: =#REF! ->  | E121: =#REF!/2.54 ->  | I121: 21.8 | J121: B1.8
A122: T | B122: x | D122: =#REF! ->  | E122: =#REF!/2.54 ->  | I122: 21.9 | J122: B1.9
A123: T | B123: x | D123: =#REF! ->  | E123: =#REF!/2.54 ->  | I123: 22 | J123: B2.0
A124: T | B124: x | D124: =#REF! ->  | E124: =#REF!/2.54 ->  | I124: 22.1 | J124: B2.1
A125: T | B125: x | D125: =#REF! ->  | E125: =#REF!/2.54 ->  | I125: 22.2 | J125: B2.2
A126: T | B126: x | D126: =#REF! ->  | E126: =#REF!/2.54 ->  | I126: 22.3 | J126: B2.3
A127: T | B127: x | D127: =#REF! ->  | E127: =#REF!/2.54 ->  | I127: 22.4 | J127: B2.4
A128: T | B128: x | D128: =#REF! ->  | E128: =#REF!/2.54 ->  | I128: 22.5 | J128: B2.5
A129: T | B129: x | D129: =#REF! ->  | E129: =#REF!/2.54 ->  | I129: 22.6 | J129: B2.6
A130: T | B130: x | D130: =#REF! ->  | E130: =#REF!/2.54 ->  | I130: 22.7 | J130: B2.7
A131: T | B131: x | D131: =#REF! ->  | E131: =#REF!/2.54 ->  | I131: 22.8 | J131: B2.8
A132: T | B132: x | D132: =#REF! ->  | E132: =#REF!/2.54 ->  | I132: 22.9 | J132: B2.9
A133: T | B133: x | D133: =#REF! ->  | E133: =#REF!/2.54 ->  | I133: 23 | J133: B3.0
A134: T | B134: x | D134: =#REF! ->  | E134: =#REF!/2.54 ->  | I134: 23.1 | J134: B3.1
I135: 23.2 | J135: B3.2
I136: 23.3 | J136: B3.3
I137: 23.4 | J137: B3.4
I138: 23.5 | J138: B3.5
I139: 23.6 | J139: B3.6
I140: 23.7 | J140: B3.7
I141: 23.8 | J141: B3.8
I142: 23.9 | J142: B3.9
I143: 24 | J143: B4.0
I144: 24.1 | J144: B4.1
I145: 24.2 | J145: B4.2
I146: 24.3 | J146: B4.3
I147: 24.4 | J147: B4.4
I148: 24.5 | J148: B4.5
I149: 24.6 | J149: B4.6
I150: 24.7 | J150: B4.7
I151: 24.8 | J151: B4.8
I152: 24.9 | J152: B4.9
I153: 25 | J153: B5.0
I154: 25.1 | J154: B5.1
I155: 25.2 | J155: B5.2
I156: 25.3 | J156: B5.3
I157: 25.4 | J157: B5.4
I158: 25.5 | J158: B5.5
I159: 25.6 | J159: B5.6
I160: 25.7 | J160: B5.7
I161: 25.8 | J161: B5.8
I162: 25.9 | J162: B5.9
I163: 26 | J163: B6.0
I164: 26.1 | J164: B6.1
I165: 26.2 | J165: B6.2
I166: 26.3 | J166: B6.3
I167: 26.4 | J167: B6.4
I168: 26.5 | J168: B6.5
I169: 26.6 | J169: B6.6
I170: 26.7 | J170: B6.7
I171: 26.8 | J171: B6.8
I172: 26.9 | J172: B6.9
I173: 27 | J173: B7.0
I174: 27.1 | J174: B7.1
I175: 27.2 | J175: B7.2
I176: 27.3 | J176: B7.3
I177: 27.4 | J177: B7.4
I178: 27.5 | J178: B7.5
I179: 27.6 | J179: B7.6
I180: 27.7 | J180: B7.7
I181: 27.8 | J181: B7.8
I182: 27.9 | J182: B7.9
I183: 28 | J183: B8.0
I184: 28.1 | J184: B8.1
I185: 28.2 | J185: B8.2
I186: 28.3 | J186: B8.3
I187: 28.4 | J187: B8.4
I188: 28.5 | J188: B8.5
I189: 28.6 | J189: B8.6
I190: 28.7 | J190: B8.7
I191: 28.8 | J191: B8.8
I192: 28.9 | J192: B8.9
I193: 29 | J193: B9.0
I194: 29.1 | J194: B9.0
I195: 29.2 | J195: B9.1
I196: 29.3 | J196: B9.2
I197: 29.4 | J197: B9.3
I198: 29.5 | J198: B9.4
I199: 29.6 | J199: B9.5
I200: 29.7 | J200: B9.6
I201: 29.8 | J201: B9.7
... 502 more rows

Sheet Collection (hidden)
D14: USE THE #8 IRON AS JUDGEMENT FOR PLAY L. VS "STD" | L14: VS.STD
D15: PLAY LENGTH VS STANDARD | G15: #3 | H15: #4 | I15: #5 | J15: #6 | K15: #7 | L15: #8 | M15: #9
D16: SLOPE START CLUB | F16: #3 | G16: STD | H16: =1/8 -> 0.125 | I16: =H16+1/8 -> 0.25 | J16: =I16+1/8 -> 0.375 | K16: 0.5 | L16: 0.625 | M16: 0.75
D17: SLOPE START CLUB | F17: #4 | G17: =-1/8 -> -0.125 | H17: STD | I17: =1/8 -> 0.125 | J17: =I17+1/8 -> 0.25 | K17: 0.375 | L17: 0.5 | M17: 0.625
D18: SLOPE START CLUB | F18: #5 | G18: =G17-1/8 -> -0.25 | H18: =-1/8 -> -0.125 | I18: STD | J18: =1/8 -> 0.125 | K18: =J18+1/8 -> 0.25 | L18: 0.375 | M18: 0.5
D19: SLOPE START CLUB | F19: #6 | G19: =G18-1/8 -> -0.375 | H19: =H18-1/8 -> -0.25 | I19: =-1/8 -> -0.125 | J19: STD | K19: =1/8 -> 0.125 | L19: =K19+1/8 -> 0.25 | M19: 0.375
D20: SLOPE START CLUB | F20: #7 | G20: -0.5 | H20: -0.375 | I20: =I19-1/8 -> -0.25 | J20: =-1/8 -> -0.125 | K20: STD | L20: =1/8 -> 0.125 | M20: =L20+1/8 -> 0.25
D21: SLOPE START CLUB | F21: #8 | G21: -0.625 | H21: -0.5 | I21: -0.375 | J21: =J20-1/8 -> -0.25 | K21: =-1/8 -> -0.125 | L21: STD | M21: =1/8 -> 0.125
D22: SLOPE START CLUB | F22: #9 | G22: -0.75 | H22: -0.625 | I22: -0.5 | J22: -0.375 | K22: =K21-1/8 -> -0.25 | L22: =-1/8 -> -0.125 | M22: STD
D24: STANDARD PLAY LENGTH | G24: =39 -> 39 | H24: =G24-0.5 -> 38.5 | I24: 38 | J24: 37.5 | K24: 37 | L24: 36.5 | M24: 36
D25: NEW PLAY LENGTH AS 3/8" | G25: #3 | H25: #4 | I25: #5 | J25: #6 | K25: #7 | L25: #8 | M25: #9
D26: =L16 -> 0.625 | E26: VS. STD | F26: #3 | G26: =G24 -> 39 | H26: =H24+H16 -> 38.625 | I26: 38.25 | J26: 37.875 | K26: 37.5 | L26: 37.125 | M26: 36.75
D27: =L17 -> 0.5 | E27: VS. STD | F27: #4 | G27: =G24+G17 -> 38.875 | H27: =H24 -> 38.5 | I27: =I24+I17 -> 38.125 | J27: =J24+J17 -> 37.75 | K27: =K24+K17 -> 37.375 | L27: =L24+L17 -> 37 | M27: =M24+M17 -> 36.625
D28: 0.375 | E28: VS. STD | F28: #5 | G28: =G24+G18 -> 38.75 | H28: =H24+H18 -> 38.375 | I28: =I24 -> 38 | J28: =J24+J18 -> 37.625 | K28: =K24+K18 -> 37.25 | L28: =L24+L18 -> 36.875 | M28: =M24+M18 -> 36.5
D29: 0.25 | E29: VS. STD | F29: #6 | G29: =G24+G19 -> 38.625 | H29: =H24+H19 -> 38.25 | I29: =I24+I19 -> 37.875 | J29: =J24 -> 37.5 | K29: =K24+K19 -> 37.125 | L29: =L24+L19 -> 36.75 | M29: =M24+M19 -> 36.375
D30: 0.125 | E30: VS. STD | F30: #7 | G30: =G24+G20 -> 38.5 | H30: =H24+H20 -> 38.125 | I30: =I24+I20 -> 37.75 | J30: =J24+J20 -> 37.375 | K30: =K24 -> 37 | L30: =L24+L20 -> 36.625 | M30: =M24+M20 -> 36.25
D31: STD | E31: VS. STD | F31: #8 | G31: =G24+G21 -> 38.375 | H31: =H24+H21 -> 38 | I31: =I24+I21 -> 37.625 | J31: =J24+J21 -> 37.25 | K31: =K24+K21 -> 36.875 | L31: =L24 -> 36.5 | M31: =M24+M21 -> 36.125
D32: -0.125 | E32: VS. STD | F32: #9 | G32: =G24+G22 -> 38.25 | H32: 37.875 | I32: 37.5 | J32: 37.125 | K32: 36.75 | L32: 36.375 | M32: =M24 -> 36
D34: MINUMUM SW VALUES TO AVOID WEIGHT REMOVAL - D2 CONSIDERED AS STANDARD
D35: LOWEST SW VALUES POSSIBLE | G35: #3 | H35: #4 | I35: #5 | J35: #6 | K35: #7 | L35: #8 | M35: #9
D36: =D26 -> 0.625 | E36: VS. STD | F36: #3 | G36: D3.5 | H36: D4.0 | I36: D4.5 | J36: D5 | K36: D5.5 | L36: D6 | M36: D6.5
D37: =D27 -> 0.5 | E37: VS. STD | F37: #4 | G37: D2.8 | H37: D3.3 | I37: D3.8 | J37: D4.3 | K37: D4.8 | L37: D5.3 | M37: D5.8
D38: 0.375 | E38: VS. STD | F38: #5 | G38: D2 | H38: D2.5 | I38: D3 | J38: D3.5 | K38: D4 | L38: D4.5 | M38: D5
D39: 0.25 | E39: VS. STD | F39: #6 | G39: D1.3 | H39: D1.8 | I39: D2.3 | J39: D2.8 | K39: D3.3 | L39: D3.8 | M39: D4.3
D40: 0.125 | E40: VS. STD | F40: #7 | G40: D0.5 | H40: D1 | I40: D1.5 | J40: D2 | K40: D2.5 | L40: D3 | M40: D3.5
D41: =D31 -> STD | E41: VS. STD | F41: #8 | G41: C9.8 | H41: D0.3 | I41: D0.8 | J41: D1.3 | K41: D1.8 | L41: D2.3 | M41: D2.8
D42: -0.125 | E42: VS. STD | F42: #9 | G42: C9 | H42: C9.5 | I42: D0 | J42: D0.5 | K42: D1 | L42: D1.5 | M42: D2
D43: ALL VALUES VS D2 AS STD - IF YOUSTART FROM D1 SUBTRACKT 1 SWP (D3=D2) AND VICE VERSA
D45: GRAMS TO ADD | O45: GRAMS TO ADD | Z45: BWGT OFF BY USE OF FLATT WGT ADDED
D46: GRAMS TO ADD | G46: #3 | H46: #4 | I46: #5 | J46: #6 | K46: #7 | L46: #8 | M46: #9 | O46: GRAMS TO ADD | R46: #3 | S46: #4 | T46: #5 | U46: #6 | V46: #7 | W46: #8 | X46: #9 | Z46: GRAMS TO ADD | AC46: #3 | AD46: #4 | AE46: #5 | AF46: #6 | AG46: #7 | AH46: #8 | AI46: #9
D47: =D36 -> 0.625 | E47: VS. STD | F47: #3 | G47: =G67*G97 -> 2.985 | H47: 2.525 | I47: 2.05 | J47: 1.56 | K47: 1.055 | L47: 0.5375 | M47: 0 | O47: =O36 -> 0 | P47: VS. STD | Q47: #3 | R47: 3 | S47: 2.5 | T47: 2 | U47: 1.5 | V47: 1 | W47: 0.5 | X47: 0 | Z47: =Z36 -> 0 | AA47: VS. STD | AB47: #3 | AC47: =R47-G47 -> 0.015 | AD47: =S47-H47 -> -0.025 | AE47: -0.05 | AF47: -0.06 | AG47: -0.055 | AH47: -0.0375 | AI47: 0
D48: =D37 -> 0.5 | E48: VS. STD | F48: #4 | G48: 3.1 | H48: 2.639 | I48: 2.163 | J48: 1.672 | K48: 1.166 | L48: 0.651 | M48: 0.11 | O48: =O37 -> 0 | P48: VS. STD | Q48: #4 | R48: =R47 -> 3 | S48: =S47 -> 2.5 | T48: =T47 -> 2 | U48: =U47 -> 1.5 | V48: =V47 -> 1 | W48: =W47 -> 0.5 | X48: =X47 -> 0 | Z48: =Z37 -> 0 | AA48: VS. STD | AB48: #4 | AC48: =R48-G48 -> -0.1 | AD48: =S48-H48 -> -0.139 | AE48: =T48-I48 -> -0.163 | AF48: =U48-J48 -> -0.172 | AG48: =V48-K48 -> -0.166 | AH48: =W48-L48 -> -0.151 | AI48: =X48-M48 -> -0.11
D49: 0.375 | E49: VS. STD | F49: #5 | G49: 3.015 | H49: 2.55 | I49: 2.07 | J49: 1.575 | K49: 1.07 | L49: 0.545 | M49: 0 | O49: 0 | P49: VS. STD | Q49: #5 | R49: 3 | S49: 2.5 | T49: 2 | U49: 1.5 | V49: 1 | W49: 0.5 | X49: 0 | Z49: 0 | AA49: VS. STD | AB49: #5 | AC49: -0.015 | AD49: -0.05 | AE49: -0.07 | AF49: -0.075 | AG49: -0.07 | AH49: -0.045 | AI49: 0
D50: 0.25 | E50: VS. STD | F50: #6 | G50: 3.131 | H50: 2.665 | I50: 2.184 | J50: 1.688 | K50: 1.1825 | L50: 0.657 | M50: 0.111 | O50: 0 | P50: VS. STD | Q50: #6 | R50: 3 | S50: 2.5 | T50: 2 | U50: 1.5 | V50: 1 | W50: 0.5 | X50: 0 | Z50: 0 | AA50: VS. STD | AB50: #6 | AC50: -0.131 | AD50: -0.165 | AE50: -0.184 | AF50: -0.188 | AG50: -0.1825 | AH50: -0.157 | AI50: -0.111
D51: 0.125 | E51: VS. STD | F51: #7 | G51: 3.045 | H51: 2.575 | I51: 2.09 | J51: 1.59 | K51: 1.085 | L51: 0.55 | M51: 0 | O51: 0 | P51: VS. STD | Q51: #7 | R51: 3 | S51: 2.5 | T51: 2 | U51: 1.5 | V51: 1 | W51: 0.5 | X51: 0 | Z51: 0 | AA51: VS. STD | AB51: #7 | AC51: -0.045 | AD51: -0.075 | AE51: -0.09 | AF51: -0.09 | AG51: -0.085 | AH51: -0.05 | AI51: 0
D52: STD | E52: VS. STD | F52: #8 | G52: 3.162 | H52: 2.691 | I52: 2.205 | J52: 1.712 | K52: 1.199 | L52: 0.663 | M52: 0.112 | O52: 0 | P52: VS. STD | Q52: #8 | R52: 3 | S52: 2.5 | T52: 2 | U52: 1.5 | V52: 1 | W52: 0.5 | X52: 0 | Z52: 0 | AA52: VS. STD | AB52: #8 | AC52: -0.162 | AD52: -0.191 | AE52: -0.205 | AF52: -0.212 | AG52: -0.199 | AH52: -0.163 | AI52: -0.112
D53: -0.125 | E53: VS. STD | F53: #9 | G53: 3.075 | H53: 2.6 | I53: 2.11 | J53: 1.6125 | K53: 1.095 | L53: 0.555 | M53: 0 | O53: 0 | P53: VS. STD | Q53: #9 | R53: 3 | S53: 2.5 | T53: 2 | U53: 1.5 | V53: 1 | W53: 0.5 | X53: 0 | Z53: 0 | AA53: VS. STD | AB53: #9 | AC53: -0.075 | AD53: -0.1 | AE53: -0.11 | AF53: -0.1125 | AG53: -0.095 | AH53: -0.055 | AI53: 0
D55: LEAD TAPE AS CENTIMETER | L55: CM to Gram | M55: 3.81 | O55: LEAD TAPE AS CENTIMETER | W55: CM to Gram | X55: 3.81 | Z55: SWP OFF TARGET BY USINFG AVERAGE FLAT WGT
D56: CM LEAD TAPE 1/2" WIDE | G56: #3 | H56: #4 | I56: #5 | J56: #6 | K56: #7 | L56: #8 | M56: #9 | O56: CM LEAD TAPE 1/2" WIDE | R56: #3 | S56: #4 | T56: #5 | U56: #6 | V56: #7 | W56: #8 | X56: #9 | Z56: GRAMS TO ADD | AC56: #3 | AD56: #4 | AE56: #5 | AF56: #6 | AG56: #7 | AH56: #8 | AI56: #9
D57: =D47 -> 0.625 | E57: VS. STD | F57: #3 | G57: =$M$55*G47 -> 11.37285 | H57: =$M$55*H47 -> 9.62025 | I57: 7.8105 | J57: 5.9436 | K57: 4.01955 | L57: 2.047875 | M57: 0 | O57: =O47 -> 0 | P57: VS. STD | Q57: #3 | R57: =$M$55*R47 -> 11.43 | S57: =$M$55*S47 -> 9.525 | T57: 7.62 | U57: 5.715 | V57: 3.81 | W57: 1.905 | X57: 0 | AA57: VS. STD | AB57: #3 | AC57: =AC47/G67 -> 0.007537688442 | AD57: =AD47/H67 -> -0.01237623762 | AE57: -0.0243902439 | AF57: -0.02884615385 | AG57: -0.02606635071 | AH57: -0.01744186047 | AI57: 0
D58: =D48 -> 0.5 | E58: VS. STD | F58: #4 | G58: =$M$55*G48 -> 11.811 | H58: 10.05459 | I58: 8.24103 | J58: 6.37032 | K58: 4.44246 | L58: 2.48031 | M58: 0.4191 | O58: =O48 -> 0 | P58: VS. STD | Q58: #4 | R58: =$M$55*R48 -> 11.43 | S58: 9.525 | T58: 7.62 | U58: 5.715 | V58: 3.81 | W58: 1.905 | X58: 0 | Z58: =Z47 -> 0 | AA58: VS. STD | AB58: #4 | AC58: =AC48/G68 -> -0.05 | AD58: =AD48/H68 -> -0.0684729064 | AE58: =AE48/I68 -> -0.07912621359 | AF58: =AF48/J68 -> -0.08229665072 | AG58: =AG48/K68 -> -0.07830188679 | AH58: =AH48/L68 -> -0.06958525346 | AI58: =AI48/M68 -> -0.05
D59: 0.375 | E59: VS. STD | F59: #5 | G59: =$M$55*G49 -> 11.48715 | H59: 9.7155 | I59: 7.8867 | J59: 6.00075 | K59: 4.0767 | L59: 2.07645 | M59: 0 | O59: 0 | P59: VS. STD | Q59: #5 | R59: =$M$55*R49 -> 11.43 | S59: 9.525 | T59: 7.62 | U59: 5.715 | V59: 3.81 | W59: 1.905 | X59: 0 | Z59: 0 | AA59: VS. STD | AB59: #5 | AC59: -0.007462686567 | AD59: -0.02450980392 | AE59: -0.03381642512 | AF59: -0.03571428571 | AG59: -0.03271028037 | AH59: -0.02064220183 | AI59: 0
D60: 0.25 | E60: VS. STD | F60: #6 | G60: =$M$55*G50 -> 11.92911 | H60: 10.15365 | I60: 8.32104 | J60: 6.43128 | K60: 4.505325 | L60: 2.50317 | M60: 0.42291 | O60: 0 | P60: VS. STD | Q60: #6 | R60: =$M$55*R50 -> 11.43 | S60: 9.525 | T60: 7.62 | U60: 5.715 | V60: 3.81 | W60: 1.905 | X60: 0 | Z60: 0 | AA60: VS. STD | AB60: #6 | AC60: -0.06485148515 | AD60: -0.08048780488 | AE60: -0.08846153846 | AF60: -0.08909952607 | AG60: -0.08488372093 | AH60: -0.07168949772 | AI60: -0.05
D61: 0.125 | E61: VS. STD | F61: #7 | G61: =$M$55*G51 -> 11.60145 | H61: 9.81075 | I61: 7.9629 | J61: 6.0579 | K61: 4.13385 | L61: 2.0955 | M61: 0 | O61: 0 | P61: VS. STD | Q61: #7 | R61: =$M$55*R51 -> 11.43 | S61: 9.525 | T61: 7.62 | U61: 5.715 | V61: 3.81 | W61: 1.905 | X61: 0 | Z61: 0 | AA61: VS. STD | AB61: #7 | AC61: -0.02216748768 | AD61: -0.03640776699 | AE61: -0.04306220096 | AF61: -0.04245283019 | AG61: -0.03917050691 | AH61: -0.02272727273 | AI61: 0
D62: STD | E62: VS. STD | F62: #8 | G62: =$M$55*G52 -> 12.04722 | H62: 10.25271 | I62: 8.40105 | J62: 6.52272 | K62: 4.56819 | L62: 2.52603 | M62: 0.42672 | O62: 0 | P62: VS. STD | Q62: #8 | R62: =$M$55*R52 -> 11.43 | S62: 9.525 | T62: 7.62 | U62: 5.715 | V62: 3.81 | W62: 1.905 | X62: 0 | Z62: 0 | AA62: VS. STD | AB62: #8 | AC62: -0.07941176471 | AD62: -0.0922705314 | AE62: -0.09761904762 | AF62: -0.09906542056 | AG62: -0.09128440367 | AH62: -0.07375565611 | AI62: -0.05
D63: -0.125 | E63: VS. STD | F63: #9 | G63: =$M$55*G53 -> 11.71575 | H63: 9.906 | I63: 8.0391 | J63: 6.143625 | K63: 4.17195 | L63: 2.11455 | M63: 0 | O63: 0 | P63: VS. STD | Q63: #9 | R63: =$M$55*R53 -> 11.43 | S63: 9.525 | T63: 7.62 | U63: 5.715 | V63: 3.81 | W63: 1.905 | X63: 0 | Z63: 0 | AA63: VS. STD | AB63: #9 | AC63: -0.03658536585 | AD63: -0.04807692308 | AE63: -0.05213270142 | AF63: -0.0523255814 | AG63: -0.04337899543 | AH63: -0.02477477477 | AI63: 0
D65: GRAMS PR SWINGWEIGHT POINT FOR REFERENNCE - RELATIVE TO NEW PLAY LENGHTS AS 3/8" | O65: GRAMS TO ADD | Z65: BWGT OFF BY USE OF FLATT WGT ADDED
D66: 1 SWING W.POINT = GRAMS | G66: #3 | H66: #4 | I66: #5 | J66: #6 | K66: #7 | L66: #8 | M66: #9 | O66: GRAMS TO ADD | R66: #3 | S66: #4 | T66: #5 | U66: #6 | V66: #7 | W66: #8 | X66: #9 | Z66: GRAMS TO ADD | AC66: #3 | AD66: #4 | AE66: #5 | AF66: #6 | AG66: #7 | AH66: #8 | AI66: #9
D67: =D57 -> 0.625 | E67: VS. STD | F67: #3 | G67: 1.99 | H67: 2.02 | I67: 2.05 | J67: 2.08 | K67: 2.11 | L67: 2.15 | M67: 2.19 | O67: =O56 -> CM LEAD TAPE 1/2" WIDE | P67: VS. STD | Q67: #3 | R67: 3 | S67: 2.5 | T67: 2 | U67: 1.5 | V67: 1 | W67: 0.52 | X67: =X87*X117 -> 0 | Z67: =Z56 -> GRAMS TO ADD | AA67: VS. STD | AB67: #3 | AC67: =R67-G47 -> 0.015 | AD67: =S67-H47 -> -0.025 | AE67: -0.05 | AF67: -0.06 | AG67: -0.055 | AH67: -0.0175 | AI67: 0
D68: =D58 -> 0.5 | E68: VS. STD | F68: #4 | G68: 2 | H68: 2.03 | I68: 2.06 | J68: 2.09 | K68: 2.12 | L68: 2.17 | M68: 2.2 | O68: =O57 -> 0 | P68: VS. STD | Q68: #4 | R68: =R67 -> 3 | S68: =S67 -> 2.5 | T68: =T67 -> 2 | U68: =U67 -> 1.5 | V68: =V67 -> 1 | W68: =W67 -> 0.52 | X68: =X67 -> 0 | Z68: =Z57 -> 0 | AA68: VS. STD | AB68: #4 | AC68: =R68-G48 -> -0.1 | AD68: =S68-H48 -> -0.139 | AE68: =T68-I48 -> -0.163 | AF68: =U68-J48 -> -0.172 | AG68: =V68-K48 -> -0.166 | AH68: =W68-L48 -> -0.131 | AI68: =X68-M48 -> -0.11
D69: 0.375 | E69: VS. STD | F69: #5 | G69: 2.01 | H69: 2.04 | I69: 2.07 | J69: 2.1 | K69: 2.14 | L69: 2.18 | M69: 2.21 | O69: 0 | P69: VS. STD | Q69: #5 | R69: 3 | S69: 2.5 | T69: 2 | U69: 1.5 | V69: 1 | W69: 0.52 | X69: 0 | Z69: 0 | AA69: VS. STD | AB69: #5 | AC69: -0.015 | AD69: -0.05 | AE69: -0.07 | AF69: -0.075 | AG69: -0.07 | AH69: -0.025 | AI69: 0
D70: 0.25 | E70: VS. STD | F70: #6 | G70: 2.02 | H70: 2.05 | I70: 2.08 | J70: 2.11 | K70: 2.15 | L70: 2.19 | M70: 2.22 | O70: 0 | P70: VS. STD | Q70: #6 | R70: 3 | S70: 2.5 | T70: 2 | U70: 1.5 | V70: 1 | W70: 0.52 | X70: 0 | Z70: 0 | AA70: VS. STD | AB70: #6 | AC70: -0.131 | AD70: -0.165 | AE70: -0.184 | AF70: -0.188 | AG70: -0.1825 | AH70: -0.137 | AI70: -0.111
D71: 0.125 | E71: VS. STD | F71: #7 | G71: 2.03 | H71: 2.06 | I71: 2.09 | J71: 2.12 | K71: 2.17 | L71: 2.2 | M71: 2.23 | O71: 0 | P71: VS. STD | Q71: #7 | R71: 3 | S71: 2.5 | T71: 2 | U71: 1.5 | V71: 1 | W71: 0.52 | X71: 0 | Z71: 0 | AA71: VS. STD | AB71: #7 | AC71: -0.045 | AD71: -0.075 | AE71: -0.09 | AF71: -0.09 | AG71: -0.085 | AH71: -0.03 | AI71: 0
D72: STD | E72: VS. STD | F72: #8 | G72: 2.04 | H72: 2.07 | I72: 2.1 | J72: 2.14 | K72: 2.18 | L72: 2.21 | M72: 2.24 | O72: 0 | P72: VS. STD | Q72: #8 | R72: 3 | S72: 2.5 | T72: 2 | U72: 1.5 | V72: 1 | W72: 0.52 | X72: 0 | Z72: 0 | AA72: VS. STD | AB72: #8 | AC72: -0.162 | AD72: -0.191 | AE72: -0.205 | AF72: -0.212 | AG72: -0.199 | AH72: -0.143 | AI72: -0.112
D73: -0.125 | E73: VS. STD | F73: #9 | G73: 2.05 | H73: 2.08 | I73: 2.11 | J73: 2.15 | K73: 2.19 | L73: 2.22 | M73: 2.26 | O73: 0 | P73: VS. STD | Q73: #9 | R73: 3 | S73: 2.5 | T73: 2 | U73: 1.5 | V73: 1 | W73: 0.52 | X73: 0 | Z73: 0 | AA73: VS. STD | AB73: #9 | AC73: -0.075 | AD73: -0.1 | AE73: -0.11 | AF73: -0.1125 | AG73: -0.095 | AH73: -0.035 | AI73: 0
D75: SWP CHANGE DUE TO GOING 3/8" | O75: LEAD TAPE AS INCH | W75: CM to Gram | X75: 3.81 | Z75: SWP OFF TARGET BY USINFG AVERAGE FLAT WGT
D76: SWP CHANGE. | G76: #3 | H76: #4 | I76: #5 | J76: #6 | K76: #7 | L76: #8 | M76: #9 | O76: CM LEAD TAPE 1/2" WIDE | R76: #3 | S76: #4 | T76: #5 | U76: #6 | V76: #7 | W76: #8 | X76: #9 | Z76: GRAMS TO ADD | AC76: #3 | AD76: #4 | AE76: #5 | AF76: #6 | AG76: #7 | AH76: #8 | AI76: #9
D77: =D67 -> 0.625 | E77: VS. STD | F77: #3 | G77: =6*0 -> 0 | H77: =6*$H16 -> 0.75 | I77: =6*$I16 -> 1.5 | J77: =6*$J16 -> 2.25 | K77: =6*$K16 -> 3 | L77: =6*$L16 -> 3.75 | M77: =6*$M16 -> 4.5 | O77: =O67 -> CM LEAD TAPE 1/2" WIDE | P77: VS. STD | Q77: #3 | R77: =R67/3 -> 1 | S77: 0.8333333333 | T77: 0.6666666667 | U77: 0.5 | V77: 0.3333333333 | W77: 0.1733333333 | X77: =$M$55*X67 -> 0 | AA77: VS. STD | AB77: #3 | AC77: =AC67/G67 -> 0.007537688442 | AD77: =AD67/H67 -> -0.01237623762 | AE77: -0.0243902439 | AF77: -0.02884615385 | AG77: -0.02606635071 | AH77: -0.008139534884 | AI77: 0
D78: =D68 -> 0.5 | E78: VS. STD | F78: #4 | G78: =6*$H18 -> -0.75 | H78: 0 | I78: =6*$I17 -> 0.75 | J78: =6*$J17 -> 1.5 | K78: =6*$K17 -> 2.25 | L78: =6*$L17 -> 3 | M78: 3.75 | O78: =O68 -> 0 | P78: VS. STD | Q78: #4 | R78: =R68/3 -> 1 | S78: 0.8333333333 | T78: 0.6666666667 | U78: 0.5 | V78: 0.3333333333 | W78: 0.1733333333 | X78: 0 | Z78: =Z67 -> GRAMS TO ADD | AA78: VS. STD | AB78: #4 | AC78: =AC68/G68 -> -0.05 | AD78: =AD68/H68 -> -0.0684729064 | AE78: =AE68/I68 -> -0.07912621359 | AF78: =AF68/J68 -> -0.08229665072 | AG78: =AG68/K68 -> -0.07830188679 | AH78: =AH68/L68 -> -0.06036866359 | AI78: =AI68/M68 -> -0.05
D79: 0.375 | E79: VS. STD | F79: #5 | G79: =6*$H19 -> -1.5 | H79: =6*$H18 -> -0.75 | I79: 0 | J79: 0.75 | K79: 1.5 | L79: 2.25 | M79: 3 | O79: 0 | P79: VS. STD | Q79: #5 | R79: =R69/3 -> 1 | S79: 0.8333333333 | T79: 0.6666666667 | U79: 0.5 | V79: 0.3333333333 | W79: 0.1733333333 | X79: 0 | Z79: 0 | AA79: VS. STD | AB79: #5 | AC79: -0.007462686567 | AD79: -0.02450980392 | AE79: -0.03381642512 | AF79: -0.03571428571 | AG79: -0.03271028037 | AH79: -0.01146788991 | AI79: 0
D80: 0.25 | E80: VS. STD | F80: #6 | G80: =6*$H20 -> -2.25 | H80: =6*$H19 -> -1.5 | I80: -0.75 | J80: 0 | K80: 0.75 | L80: 1.5 | M80: 2.25 | O80: 0 | P80: VS. STD | Q80: #6 | R80: =R70/3 -> 1 | S80: 0.8333333333 | T80: 0.6666666667 | U80: 0.5 | V80: 0.3333333333 | W80: 0.1733333333 | X80: 0 | Z80: 0 | AA80: VS. STD | AB80: #6 | AC80: -0.06485148515 | AD80: -0.08048780488 | AE80: -0.08846153846 | AF80: -0.08909952607 | AG80: -0.08488372093 | AH80: -0.06255707763 | AI80: -0.05
D81: 0.125 | E81: VS. STD | F81: #7 | G81: =6*$H21 -> -3 | H81: =6*$H20 -> -2.25 | I81: -1.5 | J81: -0.75 | K81: 0 | L81: 0.75 | M81: 1.5 | O81: 0 | P81: VS. STD | Q81: #7 | R81: =R71/3 -> 1 | S81: 0.8333333333 | T81: 0.6666666667 | U81: 0.5 | V81: 0.3333333333 | W81: 0.1733333333 | X81: 0 | Z81: 0 | AA81: VS. STD | AB81: #7 | AC81: -0.02216748768 | AD81: -0.03640776699 | AE81: -0.04306220096 | AF81: -0.04245283019 | AG81: -0.03917050691 | AH81: -0.01363636364 | AI81: 0
D82: STD | E82: VS. STD | F82: #8 | G82: =6*$H22 -> -3.75 | H82: =6*$H21 -> -3 | I82: -2.25 | J82: -1.5 | K82: -0.75 | L82: 0 | M82: 0.75 | O82: 0 | P82: VS. STD | Q82: #8 | R82: =R72/3 -> 1 | S82: 0.8333333333 | T82: 0.6666666667 | U82: 0.5 | V82: 0.3333333333 | W82: 0.1733333333 | X82: 0 | Z82: 0 | AA82: VS. STD | AB82: #8 | AC82: -0.07941176471 | AD82: -0.0922705314 | AE82: -0.09761904762 | AF82: -0.09906542056 | AG82: -0.09128440367 | AH82: -0.06470588235 | AI82: -0.05
D83: -0.125 | E83: VS. STD | F83: #9 | G83: =6*$G22 -> -4.5 | H83: =6*$H22 -> -3.75 | I83: -3 | J83: -2.25 | K83: -1.5 | L83: -0.75 | M83: 0 | O83: 0 | P83: VS. STD | Q83: #9 | R83: =R73/3 -> 1 | S83: 0.8333333333 | T83: 0.6666666667 | U83: 0.5 | V83: 0.3333333333 | W83: 0.1733333333 | X83: 0 | Z83: 0 | AA83: VS. STD | AB83: #9 | AC83: -0.03658536585 | AD83: -0.04807692308 | AE83: -0.05213270142 | AF83: -0.0523255814 | AG83: -0.04337899543 | AH83: -0.01576576577 | AI83: 0
D85: TARGET SW
D86: LOWEST TARGET SW | G86: #3 | H86: #4 | I86: #5 | J86: #6 | K86: #7 | L86: #8 | M86: #9
D87: =D77 -> 0.625 | E87: VS. STD | F87: #3 | G87: 3.5 | H87: 4 | I87: 4.5 | J87: 5 | K87: 5.5 | L87: 6 | M87: 6.5
D88: =D78 -> 0.5 | E88: VS. STD | F88: #4 | G88: 2.8 | H88: 3.3 | I88: 3.8 | J88: 4.3 | K88: 4.8 | L88: 5.3 | M88: 5.8
D89: 0.375 | E89: VS. STD | F89: #5 | G89: 2 | H89: 2.5 | I89: 3 | J89: 3.5 | K89: 4 | L89: 4.5 | M89: 5
D90: 0.25 | E90: VS. STD | F90: #6 | G90: 1.3 | H90: 1.8 | I90: 2.3 | J90: 2.8 | K90: 3.3 | L90: 3.8 | M90: 4.3
D91: 0.125 | E91: VS. STD | F91: #7 | G91: 0.5 | H91: 1 | I91: 1.5 | J91: 2 | K91: 2.5 | L91: 3 | M91: 3.5
D92: STD | E92: VS. STD | F92: #8 | G92: =H92-0.5 -> -0.2 | H92: 0.3 | I92: 0.8 | J92: 1.3 | K92: 1.8 | L92: 2.3 | M92: 2.8
D93: -0.125 | E93: VS. STD | F93: #9 | G93: =H93-0.5 -> -1 | H93: =I93-0.5 -> -0.5 | I93: 0 | J93: 0.5 | K93: 1 | L93: 1.5 | M93: 2
D95: POINT TO COMPENSATE
D96: SW POINT TOTAL TO ADJUST | G96: #3 | H96: #4 | I96: #5 | J96: #6 | K96: #7 | L96: #8 | M96: #9
D97: =D87 -> 0.625 | E97: VS. STD | F97: #3 | G97: =G87-(G77+2) -> 1.5 | H97: 1.25 | I97: 1 | J97: 0.75 | K97: 0.5 | L97: 0.25 | M97: =M87-(M77+2) -> 0
D98: =D88 -> 0.5 | E98: VS. STD | F98: #4 | G98: =G88-(G78+2) -> 1.55 | H98: 1.3 | I98: 1.05 | J98: 0.8 | K98: 0.55 | L98: 0.3 | M98: 0.05
D99: 0.375 | E99: VS. STD | F99: #5 | G99: =G89-(G79+2) -> 1.5 | H99: 1.25 | I99: 1 | J99: 0.75 | K99: 0.5 | L99: 0.25 | M99: 0
D100: 0.25 | E100: VS. STD | F100: #6 | G100: =G90-(G80+2) -> 1.55 | H100: 1.3 | I100: 1.05 | J100: 0.8 | K100: 0.55 | L100: 0.3 | M100: 0.05
D101: 0.125 | E101: VS. STD | F101: #7 | G101: =G91-(G81+2) -> 1.5 | H101: 1.25 | I101: 1 | J101: 0.75 | K101: 0.5 | L101: 0.25 | M101: 0
D102: STD | E102: VS. STD | F102: #8 | G102: =G92-(G82+2) -> 1.55 | H102: 1.3 | I102: 1.05 | J102: 0.8 | K102: 0.55 | L102: 0.3 | M102: 0.05
D103: -0.125 | E103: VS. STD | F103: #9 | G103: =G93-(G83+2) -> 1.5 | H103: 1.25 | I103: 1 | J103: 0.75 | K103: 0.5 | L103: 0.25 | M103: 0
D116: LEAD TAPE GRAMS TO PROGRESSIVE SWING WEIGHT SLOPE OF 0.5 SWP BOTH WAYS FROM THE START CLUB
D117: 1 SWING W.POINT = GRAMS | G117: #3 | H117: #4 | I117: #5 | J117: #6 | K117: #7 | L117: #8 | M117: #9
D118: SLOPE START CLUB | F118: #3 | G118: 0 | H118: -0.5 | I118: -1 | J118: -1.6 | K118: -2.1 | L118: -2.7 | M118: -3.3 | N118: =-$M118/2.19 -> 1.506849315
D119: SLOPE START CLUB | F119: #4 | G119: 0.5 | H119: 0 | I119: -0.5 | J119: -1 | K119: -1.6 | L119: -2.2 | M119: -2.8 | N119: 1.278538813
D120: SLOPE START CLUB | F120: #5 | G120: 0.04166666667 | H120: 0.5 | I120: 0 | J120: -0.5 | K120: -1.1 | L120: -1.6 | M120: -2.2 | N120: 1.00456621
D121: SLOPE START CLUB | F121: #6 | G121: 1.5 | H121: 1 | I121: 0.5 | J121: 0 | K121: -0.5 | L121: -1.1 | M121: -1.7 | N121: 0.7762557078
D122: SLOPE START CLUB | F122: #7 | G122: 2 | H122: 1.5 | I122: 1 | J122: 0.5 | K122: 0 | L122: -0.6 | M122: -1.1 | N122: 0.502283105
D123: SLOPE START CLUB | F123: #8 | G123: 2.6 | H123: 2.1 | I123: 1.6 | J123: 1.1 | K123: 0.5 | L123: 0 | M123: -0.6 | N123: 0.2739726027
D124: SLOPE START CLUB | F124: #9 | G124: 3.1 | H124: 2.6 | I124: 2.1 | J124: 1.6 | K124: 1.1 | L124: 0.6 | M124: 0 | N124: 0

Sheet Sheet2 (hidden)
B2: FITTING
I3: WORK SHOP
I11: HEAD WEIGHT ADJUSTMENT
